Workbook

Sheet Introduction to the Tool

Sheet Input sheet
A8: Workforce information
L10: Proportional split of contacts between staff types
G11: STP area | H11: SWL | L11: GP | M11: 0.7
L12: Nurse | M12: 0.2
L13: Other | M13: 0.1
G14: CCG | H14: Merton
A19: GP information
B23: GP appointment information
C24: Proportion | D24: Time (mins)
B25: Face to Face | C25: 0.8 | D25: 12.5
B26: Telephone | C26: 0.17 | D26: 10
B27: Home visit | C27: 0.03 | D27: 45
B30: Percentage non-patient facing time | F30: 0.3
B32: Percentage over 55 GPs retiring per year | F32: 0.175
B34: Percentage staff leaving for other reasons | F34: 0.06
B36: New joiners per year FTE (not including ST-1s, per CCG) | F36: 5
A38: Nurse information
B42: Nurse appointment information
C43: Proportion | D43: Time (mins)
B44: Face to Face | C44: 0.8 | D44: 15
B45: Telephone | C45: 0.18 | D45: 10
B46: Home visit | C46: 0.02 | D46: 45
B49: Percentage non-patient facing time | F49: 0.2
B51: Percentage over 55 nursess retiring per year | F51: 0.15
B53: Percentage staff leaving for other reasons | F53: 0.03
B55: New joiners per year FTE (per CCG) | F55: 15
A57: Other staff information
B61: Other Staff appointment information
C62: Proportion | D62: Time (mins)
B63: Face to Face | C63: 0.65 | D63: 15
B64: Telephone | C64: 0.33 | D64: 10
B65: Home visit | C65: 0.02 | D65: 45
B69: Percentage non-patient facing time | F69: 0.15
B71: Percentage over 55s retiring per year | F71: 0.1
B73: Percentage staff leaving for other reasons | F73: 0.03
B75: New joiners per year FTE (per CCG) | F75: 5

Sheet Appendix

Sheet Data back sheet
S1: Supply | Y1: Demand
A2: Staff type | B2: CCG | C2: STP | D2: 2016 pop | E2: 2021 pop | F2: Annual % increase | G2: Total Staff FTE | H2: ST1 joiners | I2: %staff over 55 | J2: %over 55 retiring | K2: %leavers | L2: face to face appt time (mins) | M2: Telephone appt time | N2: home visit appt time | O2: days worked per year | P2: hours per day | Q2: appts per person | R2: %change in apps per year | S2: 2016 | T2: 2017 | U2: 2018 | V2: 2019 | W2: 2020 | X2: 2021 | Y2: 2016 | Z2: 2017 | AA2: 2018 | AB2: 2019 | AC2: 2020 | AD2: 2021 | AF2: 2016 appts | AG2: 2021 appts | AI2: 2016 | AJ2: 2017 | AK2: 2018 | AL2: 2019 | AM2: 2020 | AN2: 2021
A3: GP | B3: Barking & Dagenham | C3: NEL | D3: 205773.0092 | E3: 222143.3815 | F3: =(1+(E3-D3)/D3)^0.2 -> 1.015427671 | G3: 84.19999996 | H3: 2 | I3: 0.380952381 | J3: 0.175 | K3: 0.06 | L3: 12.5 | M3: 10 | N3: 45 | O3: 200 | P3: 10.5 | Q3: 5.5 | R3: 0.017 | S3: =G3 -> 84.19999996 | T3: =S3+'Input sheet '!$F$36+($H3*0.8)-(S3*$I3*'Input sheet '!$F$32)-(S3*'Input sheet '!$F$34) -> 80.13466663 | U3: =T3+'Input sheet '!$F$36+($H3*0.8)-(T3*$I3*'Input sheet '!$F$32)-(T3*'Input sheet '!$F$34) -> 76.58427552 | V3: =U3+'Input sheet '!$F$36+($H3*0.8)-(U3*$I3*'Input sheet '!$F$32)-(U3*'Input sheet '!$F$34) -> 73.48360062 | W3: =V3+'Input sheet '!$F$36+($H3*0.8)-(V3*$I3*'Input sheet '!$F$32)-(V3*'Input sheet '!$F$34) -> 70.77567788 | X3: =W3+'Input sheet '!$F$36+($H3*0.8)-(W3*$I3*'Input sheet '!$F$32)-(W3*'Input sheet '!$F$34) -> 68.41075868 | Y3: =(($Q3*$D3*'Input sheet '!$C$25*'Input sheet '!$D$25*'Input sheet '!$M$11)+($Q3*$D3*'Input sheet '!$C$26*'Input sheet '!$D$26*'Input sheet '!$M$11)+($Q3*$D3*'Input sheet '!$C$27*'Input sheet '!$D$27*'Input sheet '!$M$11))/($O3*$P3*60*(1-'Input sheet '!$F$30)) -> 117.2171249 | Z3: =Y3*(F3+R3) -> 121.0182032 | AA3: =Z3*(F3+R3) -> 124.9425417 | AB3: =AA3*(F3+R3) -> 128.9941373 | AC3: =AB3*(F3+R3) -> 133.1771167 | AD3: =AC3*(F3+R3) -> 137.4957404 | AF3: =Q3*D3 -> 1131751.551 | AG3: =E3*(Q3*(1+R3)^5) -> 1329232.136 | AH3: GP Supply | AI3: =IF('Input sheet '!$H$14="All",SUMIF('Data back sheet '!$C3:$C34,'Input sheet '!$H$11,'Data back sheet '!S3:S34),VLOOKUP('Input sheet '!$H$14,'Data back sheet '!$B$2:$AD$34,18,FALSE)) -> 106.7500003 | AJ3: =IF('Input sheet '!$H$14="All",SUMIF('Data back sheet '!$C3:$C34,'Input sheet '!$H$11,'Data back sheet '!T3:T34),VLOOKUP('Input sheet '!$H$14,'Data back sheet '!$B$2:$AD$34,19,FALSE)) -> 104.6065503 | AK3: =IF('Input sheet '!$H$14="All",SUMIF('Data back sheet '!$C3:$C34,'Input sheet '!$H$11,'Data back sheet '!U3:U34),VLOOKUP('Input sheet '!$H$14,'Data back sheet '!$B$2:$AD$34,20,FALSE)) -> 102.6547247 | AL3: =IF('Input sheet '!$H$14="All",SUMIF('Data back sheet '!$C3:$C34,'Input sheet '!$H$11,'Data back sheet '!V3:V34),VLOOKUP('Input sheet '!$H$14,'Data back sheet '!$B$2:$AD$34,21,FALSE)) -> 100.8773923 | AM3: =IF('Input sheet '!$H$14="All",SUMIF('Data back sheet '!$C3:$C34,'Input sheet '!$H$11,'Data back sheet '!W3:W34),VLOOKUP('Input sheet '!$H$14,'Data back sheet '!$B$2:$AD$34,22,FALSE)) -> 99.25895343 | AN3: =IF('Input sheet '!$H$14="All",SUMIF('Data back sheet '!$C3:$C34,'Input sheet '!$H$11,'Data back sheet '!X3:X34),VLOOKUP('Input sheet '!$H$14,'Data back sheet '!$B$2:$AD$34,23,FALSE)) -> 97.785203
A4: GP | B4: Barnet | C4: NCL | D4: 385107.6572 | E4: 409895.3742 | F4: =(1+(E4-D4)/D4)^0.2 -> 1.012553951 | G4: 202.2700002 | H4: 12 | I4: 0.2688172043 | J4: 0.175 | K4: 0.06 | L4: 12.5 | M4: 10 | N4: 45 | O4: 200 | P4: 10.5 | Q4: 5.5 | R4: 0.017 | S4: =G4 -> 202.2700002 | T4: =S4+'Input sheet '!$F$36+($H4*0.8)-(S4*$I4*'Input sheet '!$F$32)-(S4*'Input sheet '!$F$34) -> 195.2184104 | U4: =T4+'Input sheet '!$F$36+($H4*0.8)-(T4*$I4*'Input sheet '!$F$32)-(T4*'Input sheet '!$F$34) -> 188.921644 | V4: =U4+'Input sheet '!$F$36+($H4*0.8)-(U4*$I4*'Input sheet '!$F$32)-(U4*'Input sheet '!$F$34) -> 183.2989024 | W4: =V4+'Input sheet '!$F$36+($H4*0.8)-(V4*$I4*'Input sheet '!$F$32)-(V4*'Input sheet '!$F$34) -> 178.2780361 | X4: =W4+'Input sheet '!$F$36+($H4*0.8)-(W4*$I4*'Input sheet '!$F$32)-(W4*'Input sheet '!$F$34) -> 173.7946183 | Y4: =(($Q4*$D4*'Input sheet '!$C$25*'Input sheet '!$D$25*'Input sheet '!$M$11)+($Q4*$D4*'Input sheet '!$C$26*'Input sheet '!$D$26*'Input sheet '!$M$11)+($Q4*$D4*'Input sheet '!$C$27*'Input sheet '!$D$27*'Input sheet '!$M$11))/($O4*$P4*60*(1-'Input sheet '!$F$30)) -> 219.3738262 | Z4: 225.8571895 | AA4: 232.5321618 | AB4: 239.4044059 | AC4: 246.479752 | AD4: 253.7642026 | AF4: =Q4*D4 -> 2118092.115 | AG4: =E4*(Q4*(1+R4)^5) -> 2452677.637 | AH4: GP Demand | AI4: =IF('Input sheet '!$H$14="All",SUMIF('Data back sheet '!$C3:$C34,'Input sheet '!$H$11,'Data back sheet '!Y3:Y34),VLOOKUP('Input sheet '!$H$14,'Data back sheet '!$B$2:$AD$34,24,FALSE)) -> 117.996203 | AJ4: =IF('Input sheet '!$H$14="All",SUMIF('Data back sheet '!$C3:$C34,'Input sheet '!$H$11,'Data back sheet '!Z3:Z34),VLOOKUP('Input sheet '!$H$14,'Data back sheet '!$B$2:$AD$34,25,FALSE)) -> 120.5713191 | AK4: =IF('Input sheet '!$H$14="All",SUMIF('Data back sheet '!$C3:$C34,'Input sheet '!$H$11,'Data back sheet '!AA3:AA34),VLOOKUP('Input sheet '!$H$14,'Data back sheet '!$B$2:$AD$34,26,FALSE)) -> 123.2026338 | AL4: =IF('Input sheet '!$H$14="All",SUMIF('Data back sheet '!$C3:$C34,'Input sheet '!$H$11,'Data back sheet '!AB3:AB34),VLOOKUP('Input sheet '!$H$14,'Data back sheet '!$B$2:$AD$34,27,FALSE)) -> 125.8913736 | AM4: =IF('Input sheet '!$H$14="All",SUMIF('Data back sheet '!$C3:$C34,'Input sheet '!$H$11,'Data back sheet '!AC3:AC34),VLOOKUP('Input sheet '!$H$14,'Data back sheet '!$B$2:$AD$34,28,FALSE)) -> 128.6387917 | AN4: =IF('Input sheet '!$H$14="All",SUMIF('Data back sheet '!$C3:$C34,'Input sheet '!$H$11,'Data back sheet '!AD3:AD34),VLOOKUP('Input sheet '!$H$14,'Data back sheet '!$B$2:$AD$34,29,FALSE)) -> 131.4461686
A5: GP | B5: Bexley | C5: SEL | D5: 243302.5947 | E5: 248378.1074 | F5: 1.004137797 | G5: 102.0300009 | H5: 1 | I5: 0.2592592593 | J5: 0.175 | K5: 0.06 | L5: 12.5 | M5: 10 | N5: 45 | O5: 200 | P5: 10.5 | Q5: 5.5 | R5: 0.017 | S5: 102.0300009 | T5: =S5+'Input sheet '!$F$36+($H5*0.8)-(S5*$I5*'Input sheet '!$F$32)-(S5*'Input sheet '!$F$34) -> 97.07906193 | U5: =T5+'Input sheet '!$F$36+($H5*0.8)-(T5*$I5*'Input sheet '!$F$32)-(T5*'Input sheet '!$F$34) -> 92.64980522 | V5: =U5+'Input sheet '!$F$36+($H5*0.8)-(U5*$I5*'Input sheet '!$F$32)-(U5*'Input sheet '!$F$34) -> 88.68726092 | W5: =V5+'Input sheet '!$F$36+($H5*0.8)-(V5*$I5*'Input sheet '!$F$32)-(V5*'Input sheet '!$F$34) -> 85.14225139 | X5: =W5+'Input sheet '!$F$36+($H5*0.8)-(W5*$I5*'Input sheet '!$F$32)-(W5*'Input sheet '!$F$34) -> 81.97078083 | Y5: =(($Q5*$D5*'Input sheet '!$C$25*'Input sheet '!$D$25*'Input sheet '!$M$11)+($Q5*$D5*'Input sheet '!$C$26*'Input sheet '!$D$26*'Input sheet '!$M$11)+($Q5*$D5*'Input sheet '!$C$27*'Input sheet '!$D$27*'Input sheet '!$M$11))/($O5*$P5*60*(1-'Input sheet '!$F$30)) -> 138.5955852 | Z5: 141.5251905 | AA5: 144.5167212 | AB5: 147.5714862 | AC5: 150.6908223 | AD5: 153.8760943 | AF5: =Q5*D5 -> 1338164.271 | AG5: =E5*(Q5*(1+R5)^5) -> 1486212.014
A6: GP | B6: Brent | C6: NWL | D6: 328567.7276 | E6: 345659.8734 | F6: 1.010194065 | G6: 176.7100006 | H6: 18 | I6: 0.3056994819 | J6: 0.175 | K6: 0.06 | L6: 12.5 | M6: 10 | N6: 45 | O6: 200 | P6: 10.5 | Q6: 5.5 | R6: 0.017 | S6: 176.7100006 | T6: =S6+'Input sheet '!$F$36+($H6*0.8)-(S6*$I6*'Input sheet '!$F$32)-(S6*'Input sheet '!$F$34) -> 176.0538733 | U6: =T6+'Input sheet '!$F$36+($H6*0.8)-(T6*$I6*'Input sheet '!$F$32)-(T6*'Input sheet '!$F$34) -> 175.4722148 | V6: =U6+'Input sheet '!$F$36+($H6*0.8)-(U6*$I6*'Input sheet '!$F$32)-(U6*'Input sheet '!$F$34) -> 174.956573 | W6: =V6+'Input sheet '!$F$36+($H6*0.8)-(V6*$I6*'Input sheet '!$F$32)-(V6*'Input sheet '!$F$34) -> 174.4994552 | X6: =W6+'Input sheet '!$F$36+($H6*0.8)-(W6*$I6*'Input sheet '!$F$32)-(W6*'Input sheet '!$F$34) -> 174.0942191 | Y6: =(($Q6*$D6*'Input sheet '!$C$25*'Input sheet '!$D$25*'Input sheet '!$M$11)+($Q6*$D6*'Input sheet '!$C$26*'Input sheet '!$D$26*'Input sheet '!$M$11)+($Q6*$D6*'Input sheet '!$C$27*'Input sheet '!$D$27*'Input sheet '!$M$11))/($O6*$P6*60*(1-'Input sheet '!$F$30)) -> 187.1662591 | Z6: 192.2560704 | AA6: 197.4842944 | AB6: 202.8546951 | AC6: 208.3711388 | AD6: 214.037597 | AF6: 1807122.502 | AG6: 2068313.757
A7: GP | B7: Bromley | C7: SEL | D7: 326559.5853 | E7: 333607.5681 | F7: 1.004279717 | G7: 170.280001 | H7: 15 | I7: 0.1944444444 | J7: 0.175 | K7: 0.06 | L7: 12.5 | M7: 10 | N7: 45 | O7: 200 | P7: 10.5 | Q7: 5.5 | R7: 0.017 | S7: 170.280001 | T7: =S7+'Input sheet '!$F$36+($H7*0.8)-(S7*$I7*'Input sheet '!$F$32)-(S7*'Input sheet '!$F$34) -> 171.2689509 | U7: =T7+'Input sheet '!$F$36+($H7*0.8)-(T7*$I7*'Input sheet '!$F$32)-(T7*'Input sheet '!$F$34) -> 172.1649121 | V7: =U7+'Input sheet '!$F$36+($H7*0.8)-(U7*$I7*'Input sheet '!$F$32)-(U7*'Input sheet '!$F$34) -> 172.976628 | W7: =V7+'Input sheet '!$F$36+($H7*0.8)-(V7*$I7*'Input sheet '!$F$32)-(V7*'Input sheet '!$F$34) -> 173.71202 | X7: =W7+'Input sheet '!$F$36+($H7*0.8)-(W7*$I7*'Input sheet '!$F$32)-(W7*'Input sheet '!$F$34) -> 174.3782648 | Y7: =(($Q7*$D7*'Input sheet '!$C$25*'Input sheet '!$D$25*'Input sheet '!$M$11)+($Q7*$D7*'Input sheet '!$C$26*'Input sheet '!$D$26*'Input sheet '!$M$11)+($Q7*$D7*'Input sheet '!$C$27*'Input sheet '!$D$27*'Input sheet '!$M$11))/($O7*$P7*60*(1-'Input sheet '!$F$30)) -> 186.0223352 | Z7: 189.9808379 | AA7: 194.0235765 | AB7: 198.1523433 | AC7: 202.3689692 | AD7: 206.6753236 | AF7: 1796077.719 | AG7: 1996196.769
A8: GP | B8: Camden | C8: NCL | D8: 240595.1876 | E8: 249811.742 | F8: 1.007546694 | G8: 142.8500008 | H8: 35 | I8: 0.1594202899 | J8: 0.175 | K8: 0.06 | L8: 12.5 | M8: 10 | N8: 45 | O8: 200 | P8: 10.5 | Q8: 5.5 | R8: 0.017 | S8: 142.8500008 | T8: =S8+'Input sheet '!$F$36+($H8*0.8)-(S8*$I8*'Input sheet '!$F$32)-(S8*'Input sheet '!$F$34) -> 163.2936927 | U8: =T8+'Input sheet '!$F$36+($H8*0.8)-(T8*$I8*'Input sheet '!$F$32)-(T8*'Input sheet '!$F$34) -> 181.9404138 | V8: =U8+'Input sheet '!$F$36+($H8*0.8)-(U8*$I8*'Input sheet '!$F$32)-(U8*'Input sheet '!$F$34) -> 198.9481151 | W8: =V8+'Input sheet '!$F$36+($H8*0.8)-(V8*$I8*'Input sheet '!$F$32)-(V8*'Input sheet '!$F$34) -> 214.4608641 | X8: =W8+'Input sheet '!$F$36+($H8*0.8)-(W8*$I8*'Input sheet '!$F$32)-(W8*'Input sheet '!$F$34) -> 228.610065 | Y8: =(($Q8*$D8*'Input sheet '!$C$25*'Input sheet '!$D$25*'Input sheet '!$M$11)+($Q8*$D8*'Input sheet '!$C$26*'Input sheet '!$D$26*'Input sheet '!$M$11)+($Q8*$D8*'Input sheet '!$C$27*'Input sheet '!$D$27*'Input sheet '!$M$11))/($O8*$P8*60*(1-'Input sheet '!$F$30)) -> 137.0533301 | Z8: 140.4175362 | AA8: 143.8643225 | AB8: 147.395716 | AC8: 151.0137935 | AD8: 154.7206829 | AF8: 1323273.532 | AG8: 1494790.407 | AH8: STP list | AJ8: SEL List | AK8: SWL List | AL8: NWL List | AM8: NCL List | AN8: NEL List
A9: GP | B9: Central London (Westminster) | C9: NWL | D9: 239861.5274 | E9: 250416.2946 | F9: 1.00864978 | G9: 95.36000043 | H9: 12 | I9: 0.2247191011 | J9: 0.175 | K9: 0.06 | L9: 12.5 | M9: 10 | N9: 45 | O9: 200 | P9: 10.5 | Q9: 5.5 | R9: 0.017 | S9: 95.36000043 | T9: =S9+'Input sheet '!$F$36+($H9*0.8)-(S9*$I9*'Input sheet '!$F$32)-(S9*'Input sheet '!$F$34) -> 100.488288 | U9: =T9+'Input sheet '!$F$36+($H9*0.8)-(T9*$I9*'Input sheet '!$F$32)-(T9*'Input sheet '!$F$34) -> 105.1072041 | V9: =U9+'Input sheet '!$F$36+($H9*0.8)-(U9*$I9*'Input sheet '!$F$32)-(U9*'Input sheet '!$F$34) -> 109.2673425 | W9: =V9+'Input sheet '!$F$36+($H9*0.8)-(V9*$I9*'Input sheet '!$F$32)-(V9*'Input sheet '!$F$34) -> 113.0142716 | X9: =W9+'Input sheet '!$F$36+($H9*0.8)-(W9*$I9*'Input sheet '!$F$32)-(W9*'Input sheet '!$F$34) -> 116.3890339 | Y9: =(($Q9*$D9*'Input sheet '!$C$25*'Input sheet '!$D$25*'Input sheet '!$M$11)+($Q9*$D9*'Input sheet '!$C$26*'Input sheet '!$D$26*'Input sheet '!$M$11)+($Q9*$D9*'Input sheet '!$C$27*'Input sheet '!$D$27*'Input sheet '!$M$11))/($O9*$P9*60*(1-'Input sheet '!$F$30)) -> 136.6354058 | Z9: 140.1400739 | AA9: 143.7346359 | AB9: 147.4213977 | AC9: 151.202724 | AD9: 155.0810406 | AF9: 1319238.401 | AG9: 1498407.849 | AH9: SEL | AJ9: All | AK9: All | AL9: All | AM9: All | AN9: All
A10: GP | B10: City & Hackney | C10: NEL | D10: 279460 | E10: 298024 | F10: 1.012946054 | G10: 167.4300006 | H10: 12 | I10: 0.1717791411 | J10: 0.175 | K10: 0.06 | L10: 12.5 | M10: 10 | N10: 45 | O10: 200 | P10: 10.5 | Q10: 5.5 | R10: 0.017 | S10: 167.4300006 | T10: =S10+'Input sheet '!$F$36+($H10*0.8)-(S10*$I10*'Input sheet '!$F$32)-(S10*'Input sheet '!$F$34) -> 166.9510288 | U10: =T10+'Input sheet '!$F$36+($H10*0.8)-(T10*$I10*'Input sheet '!$F$32)-(T10*'Input sheet '!$F$34) -> 166.5151938 | V10: =U10+'Input sheet '!$F$36+($H10*0.8)-(U10*$I10*'Input sheet '!$F$32)-(U10*'Input sheet '!$F$34) -> 166.1186107 | W10: =V10+'Input sheet '!$F$36+($H10*0.8)-(V10*$I10*'Input sheet '!$F$32)-(V10*'Input sheet '!$F$34) -> 165.7577444 | X10: =W10+'Input sheet '!$F$36+($H10*0.8)-(W10*$I10*'Input sheet '!$F$32)-(W10*'Input sheet '!$F$34) -> 165.4293782 | Y10: =(($Q10*$D10*'Input sheet '!$C$25*'Input sheet '!$D$25*'Input sheet '!$M$11)+($Q10*$D10*'Input sheet '!$C$26*'Input sheet '!$D$26*'Input sheet '!$M$11)+($Q10*$D10*'Input sheet '!$C$27*'Input sheet '!$D$27*'Input sheet '!$M$11))/($O10*$P10*60*(1-'Input sheet '!$F$30)) -> 159.1923929 | Z10: 163.9595768 | AA10: 168.8695192 | AB10: 173.9264949 | AC10: 179.1349071 | AD10: 184.4992907 | AF10: 1537030 | AG10: 1783276.529 | AH10: SWL | AJ10: Bexley | AK10: Croydon | AL10: Brent | AM10: Barnet | AN10: Barking & Dagenham
A11: GP | B11: Croydon | C11: SWL | D11: 383407.6197 | E11: 399552.0842 | F11: 1.008283203 | G11: 185.7700012 | H11: 17 | I11: 0.2722513089 | J11: 0.175 | K11: 0.06 | L11: 12.5 | M11: 10 | N11: 45 | O11: 200 | P11: 10.5 | Q11: 5.5 | R11: 0.017 | S11: 185.7700012 | T11: =S11+'Input sheet '!$F$36+($H11*0.8)-(S11*$I11*'Input sheet '!$F$32)-(S11*'Input sheet '!$F$34) -> 184.372979 | U11: =T11+'Input sheet '!$F$36+($H11*0.8)-(T11*$I11*'Input sheet '!$F$32)-(T11*'Input sheet '!$F$34) -> 183.1263379 | V11: =U11+'Input sheet '!$F$36+($H11*0.8)-(U11*$I11*'Input sheet '!$F$32)-(U11*'Input sheet '!$F$34) -> 182.0138903 | W11: =V11+'Input sheet '!$F$36+($H11*0.8)-(V11*$I11*'Input sheet '!$F$32)-(V11*'Input sheet '!$F$34) -> 181.0211909 | X11: =W11+'Input sheet '!$F$36+($H11*0.8)-(W11*$I11*'Input sheet '!$F$32)-(W11*'Input sheet '!$F$34) -> 180.1353496 | Y11: =(($Q11*$D11*'Input sheet '!$C$25*'Input sheet '!$D$25*'Input sheet '!$M$11)+($Q11*$D11*'Input sheet '!$C$26*'Input sheet '!$D$26*'Input sheet '!$M$11)+($Q11*$D11*'Input sheet '!$C$27*'Input sheet '!$D$27*'Input sheet '!$M$11))/($O11*$P11*60*(1-'Input sheet '!$F$30)) -> 218.405412 | Z11: 223.9274002 | AA11: 229.589002 | AB11: 235.3937473 | AC11: 241.3452551 | AD11: 247.4472361 | AF11: 2108741.908 | AG11: 2390786.828 | AH11: NWL | AJ11: Bromley | AK11: Kingston | AL11: Ealing | AM11: Camden | AN11: City & Hackney
A12: GP | B12: Ealing | C12: NWL | D12: 348532.5076 | E12: 364118.8288 | F12: 1.008788143 | G12: 182.7800004 | H12: 15 | I12: 0.2261306533 | J12: 0.175 | K12: 0.06 | L12: 12.5 | M12: 10 | N12: 45 | O12: 200 | P12: 10.5 | Q12: 5.5 | R12: 0.017 | S12: 182.7800004 | T12: =S12+'Input sheet '!$F$36+($H12*0.8)-(S12*$I12*'Input sheet '!$F$32)-(S12*'Input sheet '!$F$34) -> 181.5800722 | U12: =T12+'Input sheet '!$F$36+($H12*0.8)-(T12*$I12*'Input sheet '!$F$32)-(T12*'Input sheet '!$F$34) -> 180.4996243 | V12: =U12+'Input sheet '!$F$36+($H12*0.8)-(U12*$I12*'Input sheet '!$F$32)-(U12*'Input sheet '!$F$34) -> 179.5267597 | W12: =V12+'Input sheet '!$F$36+($H12*0.8)-(V12*$I12*'Input sheet '!$F$32)-(V12*'Input sheet '!$F$34) -> 178.650766 | X12: =W12+'Input sheet '!$F$36+($H12*0.8)-(W12*$I12*'Input sheet '!$F$32)-(W12*'Input sheet '!$F$34) -> 177.8619975 | Y12: =(($Q12*$D12*'Input sheet '!$C$25*'Input sheet '!$D$25*'Input sheet '!$M$11)+($Q12*$D12*'Input sheet '!$C$26*'Input sheet '!$D$26*'Input sheet '!$M$11)+($Q12*$D12*'Input sheet '!$C$27*'Input sheet '!$D$27*'Input sheet '!$M$11))/($O12*$P12*60*(1-'Input sheet '!$F$30)) -> 198.5390534 | Z12: 203.659007 | AA12: 208.9109947 | AB12: 214.2984214 | AC12: 219.8247799 | AD12: 225.4936529 | AF12: 1916928.792 | AG12: 2178766.009 | AH12: NCL | AJ12: Greenwich | AK12: Richmond | AL12: Hounslow | AM12: Enfield | AN12: Havering
A13: GP | B13: Enfield | C13: NCL | D13: 330967.757 | E13: 341277.2065 | F13: 1.006153679 | G13: 148.1400011 | H13: 10 | I13: 0.3157894737 | J13: 0.175 | K13: 0.06 | L13: 12.5 | M13: 10 | N13: 45 | O13: 200 | P13: 10.5 | Q13: 5.5 | R13: 0.017 | S13: 148.1400011 | T13: =S13+'Input sheet '!$F$36+($H13*0.8)-(S13*$I13*'Input sheet '!$F$32)-(S13*'Input sheet '!$F$34) -> 144.0649167 | U13: =T13+'Input sheet '!$F$36+($H13*0.8)-(T13*$I13*'Input sheet '!$F$32)-(T13*'Input sheet '!$F$34) -> 140.4595395 | V13: =U13+'Input sheet '!$F$36+($H13*0.8)-(U13*$I13*'Input sheet '!$F$32)-(U13*'Input sheet '!$F$34) -> 137.2697294 | W13: =V13+'Input sheet '!$F$36+($H13*0.8)-(V13*$I13*'Input sheet '!$F$32)-(V13*'Input sheet '!$F$34) -> 134.4475869 | X13: =W13+'Input sheet '!$F$36+($H13*0.8)-(W13*$I13*'Input sheet '!$F$32)-(W13*'Input sheet '!$F$34) -> 131.9507335 | Y13: =(($Q13*$D13*'Input sheet '!$C$25*'Input sheet '!$D$25*'Input sheet '!$M$11)+($Q13*$D13*'Input sheet '!$C$26*'Input sheet '!$D$26*'Input sheet '!$M$11)+($Q13*$D13*'Input sheet '!$C$27*'Input sheet '!$D$27*'Input sheet '!$M$11))/($O13*$P13*60*(1-'Input sheet '!$F$30)) -> 188.5334187 | Z13: 192.8986609 | AA13: 197.3649744 | AB13: 201.9346996 | AC13: 206.6102307 | AD13: 211.3940176 | AF13: 1820322.663 | AG13: 2042089.336 | AH13: NEL | AJ13: Lambeth | AK13: Merton | AL13: Hammersmith & Fulham | AM13: Haringey | AN13: Newham
A14: GP | B14: Greenwich | C14: SEL | D14: 275868.493 | E14: 300643.7565 | F14: 1.017349128 | G14: 132.2100007 | H14: 21 | I14: 0.328125 | J14: 0.175 | K14: 0.06 | L14: 12.5 | M14: 10 | N14: 45 | O14: 200 | P14: 10.5 | Q14: 5.5 | R14: 0.017 | S14: 132.2100007 | T14: =S14+'Input sheet '!$F$36+($H14*0.8)-(S14*$I14*'Input sheet '!$F$32)-(S14*'Input sheet '!$F$34) -> 138.4856545 | U14: =T14+'Input sheet '!$F$36+($H14*0.8)-(T14*$I14*'Input sheet '!$F$32)-(T14*'Input sheet '!$F$34) -> 144.0244093 | V14: =U14+'Input sheet '!$F$36+($H14*0.8)-(U14*$I14*'Input sheet '!$F$32)-(U14*'Input sheet '!$F$34) -> 148.9127931 | W14: =V14+'Input sheet '!$F$36+($H14*0.8)-(V14*$I14*'Input sheet '!$F$32)-(V14*'Input sheet '!$F$34) -> 153.2271737 | X14: =W14+'Input sheet '!$F$36+($H14*0.8)-(W14*$I14*'Input sheet '!$F$32)-(W14*'Input sheet '!$F$34) -> 157.0349517 | Y14: =(($Q14*$D14*'Input sheet '!$C$25*'Input sheet '!$D$25*'Input sheet '!$M$11)+($Q14*$D14*'Input sheet '!$C$26*'Input sheet '!$D$26*'Input sheet '!$M$11)+($Q14*$D14*'Input sheet '!$C$27*'Input sheet '!$D$27*'Input sheet '!$M$11))/($O14*$P14*60*(1-'Input sheet '!$F$30)) -> 157.1465165 | Z14: 162.5443624 | AA14: 168.1276196 | AB14: 173.9026568 | AC14: 179.8760615 | AD14: 186.0546474 | AF14: 1517276.711 | AG14: 1798952.281 | AJ14: Lewisham | AK14: Sutton | AL14: Harrow | AM14: Islington | AN14: Redbridge
A15: GP | B15: Hammersmith & Fulham | C15: NWL | D15: 183353.7672 | E15: 192209.9651 | F15: 1.009478823 | G15: 100.5400002 | H15: 11 | I15: 0.1829268293 | J15: 0.175 | K15: 0.06 | L15: 12.5 | M15: 10 | N15: 45 | O15: 200 | P15: 10.5 | Q15: 5.5 | R15: 0.017 | S15: 100.5400002 | T15: =S15+'Input sheet '!$F$36+($H15*0.8)-(S15*$I15*'Input sheet '!$F$32)-(S15*'Input sheet '!$F$34) -> 105.0890941 | U15: =T15+'Input sheet '!$F$36+($H15*0.8)-(T15*$I15*'Input sheet '!$F$32)-(T15*'Input sheet '!$F$34) -> 109.2196159 | V15: =U15+'Input sheet '!$F$36+($H15*0.8)-(U15*$I15*'Input sheet '!$F$32)-(U15*'Input sheet '!$F$34) -> 112.9700793 | W15: =V15+'Input sheet '!$F$36+($H15*0.8)-(V15*$I15*'Input sheet '!$F$32)-(V15*'Input sheet '!$F$34) -> 116.3754543 | X15: =W15+'Input sheet '!$F$36+($H15*0.8)-(W15*$I15*'Input sheet '!$F$32)-(W15*'Input sheet '!$F$34) -> 119.4674933 | Y15: =(($Q15*$D15*'Input sheet '!$C$25*'Input sheet '!$D$25*'Input sheet '!$M$11)+($Q15*$D15*'Input sheet '!$C$26*'Input sheet '!$D$26*'Input sheet '!$M$11)+($Q15*$D15*'Input sheet '!$C$27*'Input sheet '!$D$27*'Input sheet '!$M$11))/($O15*$P15*60*(1-'Input sheet '!$F$30)) -> 104.4461638 | Z15: 107.2117753 | AA15: 110.0506168 | AB15: 112.9646276 | AC15: 115.9557979 | AD15: 119.0261709 | AF15: 1008445.72 | AG15: 1150120.525 | AJ15: Southwark | AK15: Wandsworth | AL15: Hillingdon | AN15: Tower Hamlets
A16: GP | B16: Haringey | C16: NCL | D16: 274802.7844 | E16: 290455.0671 | F16: 1.011140639 | G16: 138.5700001 | H16: 4 | I16: 0.3181818182 | J16: 0.175 | K16: 0.06 | L16: 12.5 | M16: 10 | N16: 45 | O16: 200 | P16: 10.5 | Q16: 5.5 | R16: 0.017 | S16: 138.5700001 | T16: =S16+'Input sheet '!$F$36+($H16*0.8)-(S16*$I16*'Input sheet '!$F$32)-(S16*'Input sheet '!$F$34) -> 130.7399705 | U16: =T16+'Input sheet '!$F$36+($H16*0.8)-(T16*$I16*'Input sheet '!$F$32)-(T16*'Input sheet '!$F$34) -> 123.815733 | V16: =U16+'Input sheet '!$F$36+($H16*0.8)-(U16*$I16*'Input sheet '!$F$32)-(U16*'Input sheet '!$F$34) -> 117.6925039 | W16: =V16+'Input sheet '!$F$36+($H16*0.8)-(V16*$I16*'Input sheet '!$F$32)-(V16*'Input sheet '!$F$34) -> 112.2776211 | X16: =W16+'Input sheet '!$F$36+($H16*0.8)-(W16*$I16*'Input sheet '!$F$32)-(W16*'Input sheet '!$F$34) -> 107.4891417 | Y16: =(($Q16*$D16*'Input sheet '!$C$25*'Input sheet '!$D$25*'Input sheet '!$M$11)+($Q16*$D16*'Input sheet '!$C$26*'Input sheet '!$D$26*'Input sheet '!$M$11)+($Q16*$D16*'Input sheet '!$C$27*'Input sheet '!$D$27*'Input sheet '!$M$11))/($O16*$P16*60*(1-'Input sheet '!$F$30)) -> 156.5394433 | Z16: 160.9445633 | AA16: 165.4736462 | AB16: 170.1301803 | AC16: 174.9177524 | AD16: 179.8400497 | AF16: 1511415.314 | AG16: 1737986.551 | AL16: West London (K&C & QPP) | AN16: Waltham Forest
A17: GP | B17: Harrow | C17: NWL | D17: 250702.932 | E17: 258522.4137 | F17: 1.006161645 | G17: 135.3700008 | H17: 6 | I17: 0.2442748092 | J17: 0.175 | K17: 0.06 | L17: 12.5 | M17: 10 | N17: 45 | O17: 200 | P17: 10.5 | Q17: 5.5 | R17: 0.017 | S17: 135.3700008 | T17: =S17+'Input sheet '!$F$36+($H17*0.8)-(S17*$I17*'Input sheet '!$F$32)-(S17*'Input sheet '!$F$34) -> 131.2609915 | U17: =T17+'Input sheet '!$F$36+($H17*0.8)-(T17*$I17*'Input sheet '!$F$32)-(T17*'Input sheet '!$F$34) -> 127.5741751 | V17: =U17+'Input sheet '!$F$36+($H17*0.8)-(U17*$I17*'Input sheet '!$F$32)-(U17*'Input sheet '!$F$34) -> 124.2661721 | W17: =V17+'Input sheet '!$F$36+($H17*0.8)-(V17*$I17*'Input sheet '!$F$32)-(V17*'Input sheet '!$F$34) -> 121.2980601 | X17: =W17+'Input sheet '!$F$36+($H17*0.8)-(W17*$I17*'Input sheet '!$F$32)-(W17*'Input sheet '!$F$34) -> 118.6349159 | Y17: =(($Q17*$D17*'Input sheet '!$C$25*'Input sheet '!$D$25*'Input sheet '!$M$11)+($Q17*$D17*'Input sheet '!$C$26*'Input sheet '!$D$26*'Input sheet '!$M$11)+($Q17*$D17*'Input sheet '!$C$27*'Input sheet '!$D$27*'Input sheet '!$M$11))/($O17*$P17*60*(1-'Input sheet '!$F$30)) -> 142.8111345 | Z17: 146.1188752 | AA17: 149.5032287 | AB17: 152.9659694 | AC17: 156.5089128 | AD17: 160.1339166 | AF17: 1378866.126 | AG17: 1546912.17 | AL17: Central London (Westminster)
A18: GP | B18: Havering | C18: NEL | D18: 251610.7349 | E18: 265446.8105 | F18: 1.010763776 | G18: 127.7000007 | H18: 21 | I18: 0.3921568627 | J18: 0.175 | K18: 0.06 | L18: 12.5 | M18: 10 | N18: 45 | O18: 200 | P18: 10.5 | Q18: 5.5 | R18: 0.017 | S18: 127.7000007 | T18: =S18+'Input sheet '!$F$36+($H18*0.8)-(S18*$I18*'Input sheet '!$F$32)-(S18*'Input sheet '!$F$34) -> 133.0742752 | U18: =T18+'Input sheet '!$F$36+($H18*0.8)-(T18*$I18*'Input sheet '!$F$32)-(T18*'Input sheet '!$F$34) -> 137.7572704 | V18: =U18+'Input sheet '!$F$36+($H18*0.8)-(U18*$I18*'Input sheet '!$F$32)-(U18*'Input sheet '!$F$34) -> 141.8379038 | W18: =V18+'Input sheet '!$F$36+($H18*0.8)-(V18*$I18*'Input sheet '!$F$32)-(V18*'Input sheet '!$F$34) -> 145.3936558 | X18: =W18+'Input sheet '!$F$36+($H18*0.8)-(W18*$I18*'Input sheet '!$F$32)-(W18*'Input sheet '!$F$34) -> 148.4920405 | Y18: =(($Q18*$D18*'Input sheet '!$C$25*'Input sheet '!$D$25*'Input sheet '!$M$11)+($Q18*$D18*'Input sheet '!$C$26*'Input sheet '!$D$26*'Input sheet '!$M$11)+($Q18*$D18*'Input sheet '!$C$27*'Input sheet '!$D$27*'Input sheet '!$M$11))/($O18*$P18*60*(1-'Input sheet '!$F$30)) -> 143.3282579 | Z18: 147.3075915 | AA18: 151.3974064 | AB18: 155.6007701 | AC18: 159.9208349 | AD18: 164.3608411 | AF18: 1383859.042 | AG18: 1588345.458
A19: GP | B19: Hillingdon | C19: NWL | D19: 299473.6783 | E19: 307062.0456 | F19: 1.005017205 | G19: 123.1700006 | H19: 12 | I19: 0.2857142857 | J19: 0.175 | K19: 0.06 | L19: 12.5 | M19: 10 | N19: 45 | O19: 200 | P19: 10.5 | Q19: 5.5 | R19: 0.017 | S19: 123.1700006 | T19: =S19+'Input sheet '!$F$36+($H19*0.8)-(S19*$I19*'Input sheet '!$F$32)-(S19*'Input sheet '!$F$34) -> 124.2213006 | U19: =T19+'Input sheet '!$F$36+($H19*0.8)-(T19*$I19*'Input sheet '!$F$32)-(T19*'Input sheet '!$F$34) -> 125.1569575 | V19: =U19+'Input sheet '!$F$36+($H19*0.8)-(U19*$I19*'Input sheet '!$F$32)-(U19*'Input sheet '!$F$34) -> 125.9896922 | W19: =V19+'Input sheet '!$F$36+($H19*0.8)-(V19*$I19*'Input sheet '!$F$32)-(V19*'Input sheet '!$F$34) -> 126.730826 | X19: =W19+'Input sheet '!$F$36+($H19*0.8)-(W19*$I19*'Input sheet '!$F$32)-(W19*'Input sheet '!$F$34) -> 127.3904352 | Y19: =(($Q19*$D19*'Input sheet '!$C$25*'Input sheet '!$D$25*'Input sheet '!$M$11)+($Q19*$D19*'Input sheet '!$C$26*'Input sheet '!$D$26*'Input sheet '!$M$11)+($Q19*$D19*'Input sheet '!$C$27*'Input sheet '!$D$27*'Input sheet '!$M$11))/($O19*$P19*60*(1-'Input sheet '!$F$30)) -> 170.5930417 | Z19: 174.3490236 | AA19: 178.1877018 | AB19: 182.1108969 | AC19: 186.1204698 | AD19: 190.2183222 | AF19: 1647105.23 | AG19: 1837357.189
A20: GP | B20: Hounslow | C20: NWL | D20: 272101.6454 | E20: 282830.2214 | F20: 1.007764206 | G20: 143.8399998 | H20: 10 | I20: 0.3168316832 | J20: 0.175 | K20: 0.06 | L20: 12.5 | M20: 10 | N20: 45 | O20: 200 | P20: 10.5 | Q20: 5.5 | R20: 0.017 | S20: 143.8399998 | T20: =S20+'Input sheet '!$F$36+($H20*0.8)-(S20*$I20*'Input sheet '!$F$32)-(S20*'Input sheet '!$F$34) -> 140.2343127 | U20: =T20+'Input sheet '!$F$36+($H20*0.8)-(T20*$I20*'Input sheet '!$F$32)-(T20*'Input sheet '!$F$34) -> 137.0448861 | V20: =U20+'Input sheet '!$F$36+($H20*0.8)-(U20*$I20*'Input sheet '!$F$32)-(U20*'Input sheet '!$F$34) -> 134.2236646 | W20: =V20+'Input sheet '!$F$36+($H20*0.8)-(V20*$I20*'Input sheet '!$F$32)-(V20*'Input sheet '!$F$34) -> 131.7281406 | X20: =W20+'Input sheet '!$F$36+($H20*0.8)-(W20*$I20*'Input sheet '!$F$32)-(W20*'Input sheet '!$F$34) -> 129.5207136 | Y20: =(($Q20*$D20*'Input sheet '!$C$25*'Input sheet '!$D$25*'Input sheet '!$M$11)+($Q20*$D20*'Input sheet '!$C$26*'Input sheet '!$D$26*'Input sheet '!$M$11)+($Q20*$D20*'Input sheet '!$C$27*'Input sheet '!$D$27*'Input sheet '!$M$11))/($O20*$P20*60*(1-'Input sheet '!$F$30)) -> 155.0007587 | Z20: 158.8392295 | AA20: 162.772757 | AB20: 166.8036951 | AC20: 170.9344563 | AD20: 175.1675124 | AF20: 1496559.05 | AG20: 1692362.01
A21: GP | B21: Islington | C21: NCL | D21: 228397.1873 | E21: 241248.224 | F21: 1.011008192 | G21: 112.0200008 | H21: 9 | I21: 0.185483871 | J21: 0.175 | K21: 0.06 | L21: 12.5 | M21: 10 | N21: 45 | O21: 200 | P21: 10.5 | Q21: 5.5 | R21: 0.017 | S21: 112.0200008 | T21: =S21+'Input sheet '!$F$36+($H21*0.8)-(S21*$I21*'Input sheet '!$F$32)-(S21*'Input sheet '!$F$34) -> 113.8626677 | U21: =T21+'Input sheet '!$F$36+($H21*0.8)-(T21*$I21*'Input sheet '!$F$32)-(T21*'Input sheet '!$F$34) -> 115.5349622 | V21: =U21+'Input sheet '!$F$36+($H21*0.8)-(U21*$I21*'Input sheet '!$F$32)-(U21*'Input sheet '!$F$34) -> 117.0526368 | W21: =V21+'Input sheet '!$F$36+($H21*0.8)-(V21*$I21*'Input sheet '!$F$32)-(V21*'Input sheet '!$F$34) -> 118.4299878 | X21: =W21+'Input sheet '!$F$36+($H21*0.8)-(W21*$I21*'Input sheet '!$F$32)-(W21*'Input sheet '!$F$34) -> 119.6799893 | Y21: =(($Q21*$D21*'Input sheet '!$C$25*'Input sheet '!$D$25*'Input sheet '!$M$11)+($Q21*$D21*'Input sheet '!$C$26*'Input sheet '!$D$26*'Input sheet '!$M$11)+($Q21*$D21*'Input sheet '!$C$27*'Input sheet '!$D$27*'Input sheet '!$M$11))/($O21*$P21*60*(1-'Input sheet '!$F$30)) -> 130.1048263 | Z21: 133.7488273 | AA21: 137.4948902 | AB21: 141.3458735 | AC21: 145.3047159 | AD21: 149.3744383 | AF21: 1256184.53 | AG21: 1443549.162
A22: GP | B22: Kingston | C22: SWL | D22: 173853.3709 | E22: 181326.684 | F22: 1.008453136 | G22: 110.1800003 | H22: 6 | I22: 0.1962616822 | J22: 0.175 | K22: 0.06 | L22: 12.5 | M22: 10 | N22: 45 | O22: 200 | P22: 10.5 | Q22: 5.5 | R22: 0.017 | S22: 110.1800003 | T22: =S22+'Input sheet '!$F$36+($H22*0.8)-(S22*$I22*'Input sheet '!$F$32)-(S22*'Input sheet '!$F$34) -> 109.5849807 | U22: =T22+'Input sheet '!$F$36+($H22*0.8)-(T22*$I22*'Input sheet '!$F$32)-(T22*'Input sheet '!$F$34) -> 109.0460986 | V22: =U22+'Input sheet '!$F$36+($H22*0.8)-(U22*$I22*'Input sheet '!$F$32)-(U22*'Input sheet '!$F$34) -> 108.5580578 | W22: =V22+'Input sheet '!$F$36+($H22*0.8)-(V22*$I22*'Input sheet '!$F$32)-(V22*'Input sheet '!$F$34) -> 108.1160616 | X22: =W22+'Input sheet '!$F$36+($H22*0.8)-(W22*$I22*'Input sheet '!$F$32)-(W22*'Input sheet '!$F$34) -> 107.7157659 | Y22: =(($Q22*$D22*'Input sheet '!$C$25*'Input sheet '!$D$25*'Input sheet '!$M$11)+($Q22*$D22*'Input sheet '!$C$26*'Input sheet '!$D$26*'Input sheet '!$M$11)+($Q22*$D22*'Input sheet '!$C$27*'Input sheet '!$D$27*'Input sheet '!$M$11))/($O22*$P22*60*(1-'Input sheet '!$F$30)) -> 99.03433092 | Z22: 101.5550652 | AA22: 104.1399601 | AB22: 106.7906486 | AC22: 109.5088055 | AD22: 112.296148 | AF22: 956193.5399 | AG22: 1084998.59
A23: GP | B23: Lambeth | C23: SEL | D23: 325454.6437 | E23: 342398.23 | F23: 1.010201962 | G23: 181.8500002 | H23: 25 | I23: 0.152173913 | J23: 0.175 | K23: 0.06 | L23: 12.5 | M23: 10 | N23: 45 | O23: 200 | P23: 10.5 | Q23: 5.5 | R23: 0.017 | S23: 181.8500002 | T23: =S23+'Input sheet '!$F$36+($H23*0.8)-(S23*$I23*'Input sheet '!$F$32)-(S23*'Input sheet '!$F$34) -> 191.0962556 | U23: =T23+'Input sheet '!$F$36+($H23*0.8)-(T23*$I23*'Input sheet '!$F$32)-(T23*'Input sheet '!$F$34) -> 199.5415039 | V23: =U23+'Input sheet '!$F$36+($H23*0.8)-(U23*$I23*'Input sheet '!$F$32)-(U23*'Input sheet '!$F$34) -> 207.2551366 | W23: =V23+'Input sheet '!$F$36+($H23*0.8)-(V23*$I23*'Input sheet '!$F$32)-(V23*'Input sheet '!$F$34) -> 214.300534 | X23: =W23+'Input sheet '!$F$36+($H23*0.8)-(W23*$I23*'Input sheet '!$F$32)-(W23*'Input sheet '!$F$34) -> 220.7355856 | Y23: =(($Q23*$D23*'Input sheet '!$C$25*'Input sheet '!$D$25*'Input sheet '!$M$11)+($Q23*$D23*'Input sheet '!$C$26*'Input sheet '!$D$26*'Input sheet '!$M$11)+($Q23*$D23*'Input sheet '!$C$27*'Input sheet '!$D$27*'Input sheet '!$M$11))/($O23*$P23*60*(1-'Input sheet '!$F$30)) -> 185.3929131 | Z23: 190.4359641 | AA23: 195.6161959 | AB23: 200.9373403 | AC23: 206.4032302 | AD23: 212.017803 | AF23: 1790000.54 | AG23: 2048797.167
A24: GP | B24: Lewisham | C24: SEL | D24: 299817.3844 | E24: 316842.3797 | F24: 1.011107405 | G24: 155.7100006 | H24: 16 | I24: 0.2808988764 | J24: 0.175 | K24: 0.06 | L24: 12.5 | M24: 10 | N24: 45 | O24: 200 | P24: 10.5 | Q24: 5.5 | R24: 0.017 | S24: 155.7100006 | T24: =S24+'Input sheet '!$F$36+($H24*0.8)-(S24*$I24*'Input sheet '!$F$32)-(S24*'Input sheet '!$F$34) -> 156.5131169 | U24: =T24+'Input sheet '!$F$36+($H24*0.8)-(T24*$I24*'Input sheet '!$F$32)-(T24*'Input sheet '!$F$34) -> 157.2285671 | V24: =U24+'Input sheet '!$F$36+($H24*0.8)-(U24*$I24*'Input sheet '!$F$32)-(U24*'Input sheet '!$F$34) -> 157.8659207 | W24: =V24+'Input sheet '!$F$36+($H24*0.8)-(V24*$I24*'Input sheet '!$F$32)-(V24*'Input sheet '!$F$34) -> 158.4337025 | X24: =W24+'Input sheet '!$F$36+($H24*0.8)-(W24*$I24*'Input sheet '!$F$32)-(W24*'Input sheet '!$F$34) -> 158.9395068 | Y24: =(($Q24*$D24*'Input sheet '!$C$25*'Input sheet '!$D$25*'Input sheet '!$M$11)+($Q24*$D24*'Input sheet '!$C$26*'Input sheet '!$D$26*'Input sheet '!$M$11)+($Q24*$D24*'Input sheet '!$C$27*'Input sheet '!$D$27*'Input sheet '!$M$11))/($O24*$P24*60*(1-'Input sheet '!$F$30)) -> 170.7888315 | Z24: 175.5892624 | AA24: 180.5246209 | AB24: 185.5986995 | AC24: 190.8153974 | AD24: 196.178723 | AF24: 1648995.614 | AG24: 1895879.456
A25: GP | B25: Merton | C25: SWL | D25: 207140.6699 | E25: 212185.0439 | F25: 1.00482372 | G25: 106.7500003 | H25: 3 | I25: 0.168 | J25: 0.175 | K25: 0.06 | L25: 12.5 | M25: 10 | N25: 45 | O25: 200 | P25: 10.5 | Q25: 5.5 | R25: 0.017 | S25: 106.7500003 | T25: =S25+'Input sheet '!$F$36+($H25*0.8)-(S25*$I25*'Input sheet '!$F$32)-(S25*'Input sheet '!$F$34) -> 104.6065503 | U25: =T25+'Input sheet '!$F$36+($H25*0.8)-(T25*$I25*'Input sheet '!$F$32)-(T25*'Input sheet '!$F$34) -> 102.6547247 | V25: =U25+'Input sheet '!$F$36+($H25*0.8)-(U25*$I25*'Input sheet '!$F$32)-(U25*'Input sheet '!$F$34) -> 100.8773923 | W25: =V25+'Input sheet '!$F$36+($H25*0.8)-(V25*$I25*'Input sheet '!$F$32)-(V25*'Input sheet '!$F$34) -> 99.25895343 | X25: =W25+'Input sheet '!$F$36+($H25*0.8)-(W25*$I25*'Input sheet '!$F$32)-(W25*'Input sheet '!$F$34) -> 97.785203 | Y25: =(($Q25*$D25*'Input sheet '!$C$25*'Input sheet '!$D$25*'Input sheet '!$M$11)+($Q25*$D25*'Input sheet '!$C$26*'Input sheet '!$D$26*'Input sheet '!$M$11)+($Q25*$D25*'Input sheet '!$C$27*'Input sheet '!$D$27*'Input sheet '!$M$11))/($O25*$P25*60*(1-'Input sheet '!$F$30)) -> 117.996203 | Z25: 120.5713191 | AA25: 123.2026338 | AB25: 125.8913736 | AC25: 128.6387917 | AD25: 131.4461686 | AF25: 1139273.685 | AG25: 1269644.755
A26: GP | B26: Newham | C26: NEL | D26: 337378.1807 | E26: 362819.6276 | F26: 1.014646487 | G26: 169.3100012 | H26: 11 | I26: 0.3231707317 | J26: 0.175 | K26: 0.06 | L26: 12.5 | M26: 10 | N26: 45 | O26: 200 | P26: 10.5 | Q26: 5.5 | R26: 0.017 | S26: 169.3100012 | T26: =S26+'Input sheet '!$F$36+($H26*0.8)-(S26*$I26*'Input sheet '!$F$32)-(S26*'Input sheet '!$F$34) -> 163.3760947 | U26: =T26+'Input sheet '!$F$36+($H26*0.8)-(T26*$I26*'Input sheet '!$F$32)-(T26*'Input sheet '!$F$34) -> 158.1338139 | V26: =U26+'Input sheet '!$F$36+($H26*0.8)-(U26*$I26*'Input sheet '!$F$32)-(U26*'Input sheet '!$F$34) -> 153.5025465 | W26: =V26+'Input sheet '!$F$36+($H26*0.8)-(V26*$I26*'Input sheet '!$F$32)-(V26*'Input sheet '!$F$34) -> 149.4110759 | X26: =W26+'Input sheet '!$F$36+($H26*0.8)-(W26*$I26*'Input sheet '!$F$32)-(W26*'Input sheet '!$F$34) -> 145.7964862 | Y26: =(($Q26*$D26*'Input sheet '!$C$25*'Input sheet '!$D$25*'Input sheet '!$M$11)+($Q26*$D26*'Input sheet '!$C$26*'Input sheet '!$D$26*'Input sheet '!$M$11)+($Q26*$D26*'Input sheet '!$C$27*'Input sheet '!$D$27*'Input sheet '!$M$11))/($O26*$P26*60*(1-'Input sheet '!$F$30)) -> 192.1850708 | Z26: 198.2670532 | AA26: 204.541509 | AB26: 211.0145293 | AC26: 217.692398 | AD26: 224.5815977 | AF26: 1855579.994 | AG26: 2170992.021
A27: GP | B27: Redbridge | C27: NEL | D27: 301021.6161 | E27: 316853.4049 | F27: 1.010304155 | G27: 120.2600005 | H27: 12 | I27: 0.2926829268 | J27: 0.175 | K27: 0.06 | L27: 12.5 | M27: 10 | N27: 45 | O27: 200 | P27: 10.5 | Q27: 5.5 | R27: 0.017 | S27: 120.2600005 | T27: =S27+'Input sheet '!$F$36+($H27*0.8)-(S27*$I27*'Input sheet '!$F$32)-(S27*'Input sheet '!$F$34) -> 121.4847419 | U27: =T27+'Input sheet '!$F$36+($H27*0.8)-(T27*$I27*'Input sheet '!$F$32)-(T27*'Input sheet '!$F$34) -> 122.5732681 | V27: =U27+'Input sheet '!$F$36+($H27*0.8)-(U27*$I27*'Input sheet '!$F$32)-(U27*'Input sheet '!$F$34) -> 123.540729 | W27: =V27+'Input sheet '!$F$36+($H27*0.8)-(V27*$I27*'Input sheet '!$F$32)-(V27*'Input sheet '!$F$34) -> 124.4005894 | X27: =W27+'Input sheet '!$F$36+($H27*0.8)-(W27*$I27*'Input sheet '!$F$32)-(W27*'Input sheet '!$F$34) -> 125.1648166 | Y27: =(($Q27*$D27*'Input sheet '!$C$25*'Input sheet '!$D$25*'Input sheet '!$M$11)+($Q27*$D27*'Input sheet '!$C$26*'Input sheet '!$D$26*'Input sheet '!$M$11)+($Q27*$D27*'Input sheet '!$C$27*'Input sheet '!$D$27*'Input sheet '!$M$11))/($O27*$P27*60*(1-'Input sheet '!$F$30)) -> 171.4748135 | Z27: 176.1567883 | AA27: 180.9666006 | AB27: 185.9077407 | AC27: 190.9837945 | AD27: 196.1984456 | AF27: 1655618.889 | AG27: 1895945.427
A28: GP | B28: Richmond | C28: SWL | D28: 196602.2286 | E28: 200158.6816 | F28: 1.003592019 | G28: 114.1000011 | H28: 3 | I28: 0.2260869565 | J28: 0.175 | K28: 0.06 | L28: 12.5 | M28: 10 | N28: 45 | O28: 200 | P28: 10.5 | Q28: 5.5 | R28: 0.017 | S28: 114.1000011 | T28: =S28+'Input sheet '!$F$36+($H28*0.8)-(S28*$I28*'Input sheet '!$F$32)-(S28*'Input sheet '!$F$34) -> 110.1396097 | U28: =T28+'Input sheet '!$F$36+($H28*0.8)-(T28*$I28*'Input sheet '!$F$32)-(T28*'Input sheet '!$F$34) -> 106.5735355 | V28: =U28+'Input sheet '!$F$36+($H28*0.8)-(U28*$I28*'Input sheet '!$F$32)-(U28*'Input sheet '!$F$34) -> 103.3625182 | W28: =V28+'Input sheet '!$F$36+($H28*0.8)-(V28*$I28*'Input sheet '!$F$32)-(V28*'Input sheet '!$F$34) -> 100.4712066 | X28: =W28+'Input sheet '!$F$36+($H28*0.8)-(W28*$I28*'Input sheet '!$F$32)-(W28*'Input sheet '!$F$34) -> 97.86776912 | Y28: =(($Q28*$D28*'Input sheet '!$C$25*'Input sheet '!$D$25*'Input sheet '!$M$11)+($Q28*$D28*'Input sheet '!$C$26*'Input sheet '!$D$26*'Input sheet '!$M$11)+($Q28*$D28*'Input sheet '!$C$27*'Input sheet '!$D$27*'Input sheet '!$M$11))/($O28*$P28*60*(1-'Input sheet '!$F$30)) -> 111.9930552 | Z28: 114.2992184 | AA28: 116.6528701 | AB28: 119.0549882 | AC28: 121.5065708 | AD28: 124.0086365 | AF28: 1081312.257 | AG28: 1197683.002
A29: GP | B29: Southwark | C29: SEL | D29: 310642.3523 | E29: 332523.7542 | F29: 1.013706898 | G29: 154.4800009 | H29: 4 | I29: 0.2013888889 | J29: 0.175 | K29: 0.06 | L29: 12.5 | M29: 10 | N29: 45 | O29: 200 | P29: 10.5 | Q29: 5.5 | R29: 0.017 | S29: 154.4800009 | T29: =S29+'Input sheet '!$F$36+($H29*0.8)-(S29*$I29*'Input sheet '!$F$32)-(S29*'Input sheet '!$F$34) -> 147.9668536 | U29: =T29+'Input sheet '!$F$36+($H29*0.8)-(T29*$I29*'Input sheet '!$F$32)-(T29*'Input sheet '!$F$34) -> 142.0740384 | V29: =U29+'Input sheet '!$F$36+($H29*0.8)-(U29*$I29*'Input sheet '!$F$32)-(U29*'Input sheet '!$F$34) -> 136.7424728 | W29: =V29+'Input sheet '!$F$36+($H29*0.8)-(V29*$I29*'Input sheet '!$F$32)-(V29*'Input sheet '!$F$34) -> 131.9187019 | X29: =W29+'Input sheet '!$F$36+($H29*0.8)-(W29*$I29*'Input sheet '!$F$32)-(W29*'Input sheet '!$F$34) -> 127.5543616 | Y29: =(($Q29*$D29*'Input sheet '!$C$25*'Input sheet '!$D$25*'Input sheet '!$M$11)+($Q29*$D29*'Input sheet '!$C$26*'Input sheet '!$D$26*'Input sheet '!$M$11)+($Q29*$D29*'Input sheet '!$C$27*'Input sheet '!$D$27*'Input sheet '!$M$11))/($O29*$P29*60*(1-'Input sheet '!$F$30)) -> 176.9551971 | Z29: 182.3889423 | AA29: 187.989541 | AB29: 193.7621166 | AC29: 199.7119502 | AD29: 205.8444847 | AF29: 1708532.938 | AG29: 1989711.588
A30: GP | B30: Sutton | C30: SWL | D30: 201750.7963 | E30: 205926.3036 | F30: 1.004105424 | G30: 98.00000066 | H30: 13 | I30: 0.2522522523 | J30: 0.175 | K30: 0.06 | L30: 12.5 | M30: 10 | N30: 45 | O30: 200 | P30: 10.5 | Q30: 5.5 | R30: 0.017 | S30: 98.00000066 | T30: =S30+'Input sheet '!$F$36+($H30*0.8)-(S30*$I30*'Input sheet '!$F$32)-(S30*'Input sheet '!$F$34) -> 103.1938745 | U30: =T30+'Input sheet '!$F$36+($H30*0.8)-(T30*$I30*'Input sheet '!$F$32)-(T30*'Input sheet '!$F$34) -> 107.8468367 | V30: =U30+'Input sheet '!$F$36+($H30*0.8)-(U30*$I30*'Input sheet '!$F$32)-(U30*'Input sheet '!$F$34) -> 112.0152202 | W30: =V30+'Input sheet '!$F$36+($H30*0.8)-(V30*$I30*'Input sheet '!$F$32)-(V30*'Input sheet '!$F$34) -> 115.749491 | X30: =W30+'Input sheet '!$F$36+($H30*0.8)-(W30*$I30*'Input sheet '!$F$32)-(W30*'Input sheet '!$F$34) -> 119.0948593 | Y30: =(($Q30*$D30*'Input sheet '!$C$25*'Input sheet '!$D$25*'Input sheet '!$M$11)+($Q30*$D30*'Input sheet '!$C$26*'Input sheet '!$D$26*'Input sheet '!$M$11)+($Q30*$D30*'Input sheet '!$C$27*'Input sheet '!$D$27*'Input sheet '!$M$11))/($O30*$P30*60*(1-'Input sheet '!$F$30)) -> 114.9259 | Z30: 117.3514599 | AA30: 119.8282123 | AB30: 122.3572376 | AC30: 124.939639 | AD30: 127.5765431 | AF30: 1109629.38 | AG30: 1232194.534
A31: GP | B31: Tower Hamlets | C31: NEL | D31: 297804.9566 | E31: 337617.385 | F31: 1.025412426 | G31: 168.3500014 | H31: 17 | I31: 0.1739130435 | J31: 0.175 | K31: 0.06 | L31: 12.5 | M31: 10 | N31: 45 | O31: 200 | P31: 10.5 | Q31: 5.5 | R31: 0.017 | S31: 168.3500014 | T31: =S31+'Input sheet '!$F$36+($H31*0.8)-(S31*$I31*'Input sheet '!$F$32)-(S31*'Input sheet '!$F$34) -> 171.7253056 | U31: =T31+'Input sheet '!$F$36+($H31*0.8)-(T31*$I31*'Input sheet '!$F$32)-(T31*'Input sheet '!$F$34) -> 174.7953649 | V31: =U31+'Input sheet '!$F$36+($H31*0.8)-(U31*$I31*'Input sheet '!$F$32)-(U31*'Input sheet '!$F$34) -> 177.5877841 | W31: =V31+'Input sheet '!$F$36+($H31*0.8)-(V31*$I31*'Input sheet '!$F$32)-(V31*'Input sheet '!$F$34) -> 180.1276714 | X31: =W31+'Input sheet '!$F$36+($H31*0.8)-(W31*$I31*'Input sheet '!$F$32)-(W31*'Input sheet '!$F$34) -> 182.4378646 | Y31: =(($Q31*$D31*'Input sheet '!$C$25*'Input sheet '!$D$25*'Input sheet '!$M$11)+($Q31*$D31*'Input sheet '!$C$26*'Input sheet '!$D$26*'Input sheet '!$M$11)+($Q31*$D31*'Input sheet '!$C$27*'Input sheet '!$D$27*'Input sheet '!$M$11))/($O31*$P31*60*(1-'Input sheet '!$F$30)) -> 169.6424663 | Z31: 176.8374149 | AA31: 184.3375187 | AB31: 192.1557201 | AC31: 200.3055104 | AD31: 208.8009531 | AF31: 1637927.261 | AG31: 2020190.181
A32: GP | B32: Waltham Forest | C32: NEL | D32: 274139.4078 | E32: 284554.6096 | F32: 1.007485562 | G32: 129.4000001 | H32: 28 | I32: 0.3303571429 | J32: 0.175 | K32: 0.06 | L32: 12.5 | M32: 10 | N32: 45 | O32: 200 | P32: 10.5 | Q32: 5.5 | R32: 0.017 | S32: 129.4000001 | T32: =S32+'Input sheet '!$F$36+($H32*0.8)-(S32*$I32*'Input sheet '!$F$32)-(S32*'Input sheet '!$F$34) -> 141.5550626 | U32: =T32+'Input sheet '!$F$36+($H32*0.8)-(T32*$I32*'Input sheet '!$F$32)-(T32*'Input sheet '!$F$34) -> 152.2781068 | V32: =U32+'Input sheet '!$F$36+($H32*0.8)-(U32*$I32*'Input sheet '!$F$32)-(U32*'Input sheet '!$F$34) -> 161.7378424 | W32: =V32+'Input sheet '!$F$36+($H32*0.8)-(V32*$I32*'Input sheet '!$F$32)-(V32*'Input sheet '!$F$34) -> 170.0831028 | X32: =W32+'Input sheet '!$F$36+($H32*0.8)-(W32*$I32*'Input sheet '!$F$32)-(W32*'Input sheet '!$F$34) -> 177.4451873 | Y32: =(($Q32*$D32*'Input sheet '!$C$25*'Input sheet '!$D$25*'Input sheet '!$M$11)+($Q32*$D32*'Input sheet '!$C$26*'Input sheet '!$D$26*'Input sheet '!$M$11)+($Q32*$D32*'Input sheet '!$C$27*'Input sheet '!$D$27*'Input sheet '!$M$11))/($O32*$P32*60*(1-'Input sheet '!$F$30)) -> 156.1615555 | Z32: 159.9852589 | AA32: 163.9025879 | AB32: 167.9158348 | AC32: 172.0273484 | AD32: 176.2395346 | AF32: 1507766.743 | AG32: 1702680.175
A33: GP | B33: Wandsworth | C33: SWL | D33: 318253.4708 | E33: 331558.5638 | F33: 1.008224903 | G33: 206.1900022 | H33: 25 | I33: 0.1950207469 | J33: 0.175 | K33: 0.06 | L33: 12.5 | M33: 10 | N33: 45 | O33: 200 | P33: 10.5 | Q33: 5.5 | R33: 0.017 | S33: 206.1900022 | T33: =S33+'Input sheet '!$F$36+($H33*0.8)-(S33*$I33*'Input sheet '!$F$32)-(S33*'Input sheet '!$F$34) -> 211.7816196 | U33: =T33+'Input sheet '!$F$36+($H33*0.8)-(T33*$I33*'Input sheet '!$F$32)-(T33*'Input sheet '!$F$34) -> 216.8469058 | V33: =U33+'Input sheet '!$F$36+($H33*0.8)-(U33*$I33*'Input sheet '!$F$32)-(U33*'Input sheet '!$F$34) -> 221.4354035 | W33: =V33+'Input sheet '!$F$36+($H33*0.8)-(V33*$I33*'Input sheet '!$F$32)-(V33*'Input sheet '!$F$34) -> 225.5919921 | X33: =W33+'Input sheet '!$F$36+($H33*0.8)-(W33*$I33*'Input sheet '!$F$32)-(W33*'Input sheet '!$F$34) -> 229.3573268 | Y33: =(($Q33*$D33*'Input sheet '!$C$25*'Input sheet '!$D$25*'Input sheet '!$M$11)+($Q33*$D33*'Input sheet '!$C$26*'Input sheet '!$D$26*'Input sheet '!$M$11)+($Q33*$D33*'Input sheet '!$C$27*'Input sheet '!$D$27*'Input sheet '!$M$11))/($O33*$P33*60*(1-'Input sheet '!$F$30)) -> 181.2908164 | Z33: 185.8638597 | AA33: 190.5522575 | AB33: 195.3589197 | AC33: 200.2868294 | AD33: 205.3390453 | AF33: 1750394.09 | AG33: 1983936.209
A34: GP | B34: West London (K&C & QPP) | C34: NWL | D34: 158447.2042 | E34: 161987.1734 | F34: 1.004428922 | G34: 134.8700016 | H34: 16 | I34: 0.3157894737 | J34: 0.175 | K34: 0.06 | L34: 12.5 | M34: 10 | N34: 45 | O34: 200 | P34: 10.5 | Q34: 5.5 | R34: 0.017 | S34: 134.8700016 | T34: =S34+'Input sheet '!$F$36+($H34*0.8)-(S34*$I34*'Input sheet '!$F$32)-(S34*'Input sheet '!$F$34) -> 137.1244593 | U34: =T34+'Input sheet '!$F$36+($H34*0.8)-(T34*$I34*'Input sheet '!$F$32)-(T34*'Input sheet '!$F$34) -> 139.1190611 | V34: =U34+'Input sheet '!$F$36+($H34*0.8)-(U34*$I34*'Input sheet '!$F$32)-(U34*'Input sheet '!$F$34) -> 140.8837588 | W34: =V34+'Input sheet '!$F$36+($H34*0.8)-(V34*$I34*'Input sheet '!$F$32)-(V34*'Input sheet '!$F$34) -> 142.4450519 | X34: =W34+'Input sheet '!$F$36+($H34*0.8)-(W34*$I34*'Input sheet '!$F$32)-(W34*'Input sheet '!$F$34) -> 143.8263854 | Y34: =(($Q34*$D34*'Input sheet '!$C$25*'Input sheet '!$D$25*'Input sheet '!$M$11)+($Q34*$D34*'Input sheet '!$C$26*'Input sheet '!$D$26*'Input sheet '!$M$11)+($Q34*$D34*'Input sheet '!$C$27*'Input sheet '!$D$27*'Input sheet '!$M$11))/($O34*$P34*60*(1-'Input sheet '!$F$30)) -> 90.25831813 | Z34: 92.19245656 | AA34: 94.16804149 | AB34: 96.18596107 | AC34: 98.2471225 | AD34: 100.3524524 | AF34: 871459.6233 | AG34: 969277.3883
S35: =SUM(S3:S34) -> 4520.690022 | X35: =SUM(X3:X34) -> 4634.455999 | Y35: =SUM(Y3:Y34) -> 4984.803758 | AD35: =SUM(AD3:AD34) -> 5689.541313
X36: =(X35-S35)/S35 -> 0.0251656221 | AD36: =(AD35-Y35)/Y35 -> 0.1413771915
S38: 2016 | T38: 2017 | U38: 2018 | V38: 2019 | W38: 2020 | X38: 2021 | Y38: 2016 | Z38: 2017 | AA38: 2018 | AB38: 2019 | AC38: 2020 | AD38: 2021 | AI38: 2016 | AJ38: 2017 | AK38: 2018 | AL38: 2019 | AM38: 2020 | AN38: 2021
A39: Nurse | B39: Barking & Dagenham | C39: NEL | D39: 205773.0092 | E39: 222143.3815 | F39: 1.015427671 | G39: 39.94999968 | H39: NA | I39: 0.4081632653 | J39: 0.15 | K39: 0.02 | L39: 20 | M39: 10 | N39: 60 | O39: 210 | P39: 8 | Q39: 5.5 | R39: 0.017 | S39: =G39 -> 39.94999968 | T39: =S39+'Input sheet '!$F$55-(S39*$I39*'Input sheet '!$F$51)-(S39*'Input sheet '!$F$53) -> 51.30558134 | U39: =T39+'Input sheet '!$F$55-(T39*$I39*'Input sheet '!$F$51)-(T39*'Input sheet '!$F$53) -> 61.62525586 | V39: =U39+'Input sheet '!$F$55-(U39*$I39*'Input sheet '!$F$51)-(U39*'Input sheet '!$F$53) -> 71.00352333 | W39: =V39+'Input sheet '!$F$55-(V39*$I39*'Input sheet '!$F$51)-(V39*'Input sheet '!$F$53) -> 79.52626314 | X39: =W39+'Input sheet '!$F$55-(W39*$I39*'Input sheet '!$F$51)-(W39*'Input sheet '!$F$53) -> 87.27152036 | Y39: =(($Q39*$D39*'Input sheet '!$C$44*'Input sheet '!$D$44*'Input sheet '!$M$12)+($Q39*$D39*'Input sheet '!$C$45*'Input sheet '!$D$45*'Input sheet '!$M$12)+($Q39*$D39*'Input sheet '!$C$46*'Input sheet '!$D$46*'Input sheet '!$M$12))/($O39*$P39*60*(1-'Input sheet '!$F$49)) -> 41.26177528 | Z39: =Y39*(F39+R39) -> 42.59979855 | AA39: =Z39*(F39+R39) -> 43.9812108 | AB39: =AA39*(F39+R39) -> 45.40741902 | AC39: =AB39*(F39+R39) -> 46.87987586 | AD39: =AC39*(F39+R39) -> 48.40008105 | AH39: Nurse Supply | AI39: =IF('Input sheet '!$H$14="All",SUMIF('Data back sheet '!$C39:$C70,'Input sheet '!$H$11,'Data back sheet '!S39:S70),VLOOKUP('Input sheet '!$H$14,'Data back sheet '!$B$39:$AD$70,18,FALSE)) -> 47.23999976 | AJ39: =IF('Input sheet '!$H$14="All",SUMIF('Data back sheet '!$C39:$C70,'Input sheet '!$H$11,'Data back sheet '!T39:T70),VLOOKUP('Input sheet '!$H$14,'Data back sheet '!$B$39:$AD$70,19,FALSE)) -> 57.72267478 | AK39: =IF('Input sheet '!$H$14="All",SUMIF('Data back sheet '!$C39:$C70,'Input sheet '!$H$11,'Data back sheet '!U39:U70),VLOOKUP('Input sheet '!$H$14,'Data back sheet '!$B$39:$AD$70,20,FALSE)) -> 67.202944 | AL39: =IF('Input sheet '!$H$14="All",SUMIF('Data back sheet '!$C39:$C70,'Input sheet '!$H$11,'Data back sheet '!V39:V70),VLOOKUP('Input sheet '!$H$14,'Data back sheet '!$B$39:$AD$70,21,FALSE)) -> 75.77666248 | AM39: =IF('Input sheet '!$H$14="All",SUMIF('Data back sheet '!$C39:$C70,'Input sheet '!$H$11,'Data back sheet '!W39:W70),VLOOKUP('Input sheet '!$H$14,'Data back sheet '!$B$39:$AD$70,22,FALSE)) -> 83.53051913 | AN39: =IF('Input sheet '!$H$14="All",SUMIF('Data back sheet '!$C39:$C70,'Input sheet '!$H$11,'Data back sheet '!X39:X70),VLOOKUP('Input sheet '!$H$14,'Data back sheet '!$B$39:$AD$70,23,FALSE)) -> 90.54291324
A40: Nurse | B40: Barnet | C40: NCL | D40: 385107.6572 | E40: 409895.3742 | F40: 1.012553951 | G40: 77.07999919 | H40: NA | I40: 0.3870967742 | J40: 0.15 | K40: 0.02 | L40: 20 | M40: 10 | N40: 60 | O40: 210 | P40: 8 | Q40: 5.5 | R40: 0.017 | S40: =G40 -> 77.07999919 | T40: =S40+'Input sheet '!$F$55-(S40*$I40*'Input sheet '!$F$51)-(S40*'Input sheet '!$F$53) -> 85.29198636 | U40: =T40+'Input sheet '!$F$55-(T40*$I40*'Input sheet '!$F$51)-(T40*'Input sheet '!$F$53) -> 92.78078885 | V40: =U40+'Input sheet '!$F$55-(U40*$I40*'Input sheet '!$F$51)-(U40*'Input sheet '!$F$53) -> 99.61009358 | W40: =V40+'Input sheet '!$F$55-(V40*$I40*'Input sheet '!$F$51)-(V40*'Input sheet '!$F$53) -> 105.8379789 | X40: =W40+'Input sheet '!$F$55-(W40*$I40*'Input sheet '!$F$51)-(W40*'Input sheet '!$F$53) -> 111.5174085 | Y40: =(($Q40*$D40*'Input sheet '!$C$44*'Input sheet '!$D$44*'Input sheet '!$M$12)+($Q40*$D40*'Input sheet '!$C$45*'Input sheet '!$D$45*'Input sheet '!$M$12)+($Q40*$D40*'Input sheet '!$C$46*'Input sheet '!$D$46*'Input sheet '!$M$12))/($O40*$P40*60*(1-'Input sheet '!$F$49)) -> 77.22210835 | Z40: =Y40*(F40+R40) -> 79.50432676 | AA40: =Z40*(F40+R40) -> 81.85399374 | AB40: =AA40*(F40+R40) -> 84.27310267 | AC40: =AB40*(F40+R40) -> 86.76370582 | AD40: =AC40*(F40+R40) -> 89.32791613 | AH40: Nurse Demand | AI40: =IF('Input sheet '!$H$14="All",SUMIF('Data back sheet '!$C39:$C70,'Input sheet '!$H$11,'Data back sheet '!Y39:Y70),VLOOKUP('Input sheet '!$H$14,'Data back sheet '!$B$39:$AD$70,24,FALSE)) -> 41.53601975 | AJ40: =IF('Input sheet '!$H$14="All",SUMIF('Data back sheet '!$C39:$C70,'Input sheet '!$H$11,'Data back sheet '!Z39:Z70),VLOOKUP('Input sheet '!$H$14,'Data back sheet '!$B$39:$AD$70,25,FALSE)) -> 42.44249021 | AK40: =IF('Input sheet '!$H$14="All",SUMIF('Data back sheet '!$C39:$C70,'Input sheet '!$H$11,'Data back sheet '!AA39:AA70),VLOOKUP('Input sheet '!$H$14,'Data back sheet '!$B$39:$AD$70,26,FALSE)) -> 43.36874323 | AL40: =IF('Input sheet '!$H$14="All",SUMIF('Data back sheet '!$C39:$C70,'Input sheet '!$H$11,'Data back sheet '!AB39:AB70),VLOOKUP('Input sheet '!$H$14,'Data back sheet '!$B$39:$AD$70,27,FALSE)) -> 44.31521053 | AM40: =IF('Input sheet '!$H$14="All",SUMIF('Data back sheet '!$C39:$C70,'Input sheet '!$H$11,'Data back sheet '!AC39:AC70),VLOOKUP('Input sheet '!$H$14,'Data back sheet '!$B$39:$AD$70,28,FALSE)) -> 45.28233327 | AN40: =IF('Input sheet '!$H$14="All",SUMIF('Data back sheet '!$C39:$C70,'Input sheet '!$H$11,'Data back sheet '!AD39:AD70),VLOOKUP('Input sheet '!$H$14,'Data back sheet '!$B$39:$AD$70,29,FALSE)) -> 46.27056223
A41: Nurse | B41: Bexley | C41: SEL | D41: 243302.5947 | E41: 248378.1074 | F41: 1.004137797 | G41: 56.17999999 | H41: NA | I41: 0.3142857143 | J41: 0.15 | K41: 0.02 | L41: 20 | M41: 10 | N41: 60 | O41: 210 | P41: 8 | Q41: 5.5 | R41: 0.017 | S41: 56.17999999 | T41: =S41+'Input sheet '!$F$55-(S41*$I41*'Input sheet '!$F$51)-(S41*'Input sheet '!$F$53) -> 66.84611428 | U41: =T41+'Input sheet '!$F$55-(T41*$I41*'Input sheet '!$F$51)-(T41*'Input sheet '!$F$53) -> 76.68941403 | V41: =U41+'Input sheet '!$F$55-(U41*$I41*'Input sheet '!$F$51)-(U41*'Input sheet '!$F$53) -> 85.77337352 | W41: =V41+'Input sheet '!$F$55-(V41*$I41*'Input sheet '!$F$51)-(V41*'Input sheet '!$F$53) -> 94.15657042 | X41: =W41+'Input sheet '!$F$55-(W41*$I41*'Input sheet '!$F$51)-(W41*'Input sheet '!$F$53) -> 101.8930636 | Y41: =(($Q41*$D41*'Input sheet '!$C$44*'Input sheet '!$D$44*'Input sheet '!$M$12)+($Q41*$D41*'Input sheet '!$C$45*'Input sheet '!$D$45*'Input sheet '!$M$12)+($Q41*$D41*'Input sheet '!$C$46*'Input sheet '!$D$46*'Input sheet '!$M$12))/($O41*$P41*60*(1-'Input sheet '!$F$49)) -> 48.78723903 | Z41: 49.81849377 | AA41: 50.87154697 | AB41: 51.94685938 | AC41: 53.04490153 | AD41: 54.16615388
A42: Nurse | B42: Brent | C42: NWL | D42: 328567.7276 | E42: 345659.8734 | F42: 1.010194065 | G42: 62.32999927 | H42: NA | I42: 0.5416666667 | J42: 0.15 | K42: 0.02 | L42: 20 | M42: 10 | N42: 60 | O42: 210 | P42: 8 | Q42: 5.5 | R42: 0.017 | S42: 62.32999927 | T42: =S42+'Input sheet '!$F$55-(S42*$I42*'Input sheet '!$F$51)-(S42*'Input sheet '!$F$53) -> 70.39578685 | U42: =T42+'Input sheet '!$F$55-(T42*$I42*'Input sheet '!$F$51)-(T42*'Input sheet '!$F$53) -> 77.56425556 | V42: =U42+'Input sheet '!$F$55-(U42*$I42*'Input sheet '!$F$51)-(U42*'Input sheet '!$F$53) -> 83.93523213 | W42: =V42+'Input sheet '!$F$55-(V42*$I42*'Input sheet '!$F$51)-(V42*'Input sheet '!$F$53) -> 89.59743756 | X42: =W42+'Input sheet '!$F$55-(W42*$I42*'Input sheet '!$F$51)-(W42*'Input sheet '!$F$53) -> 94.62972263 | Y42: =(($Q42*$D42*'Input sheet '!$C$44*'Input sheet '!$D$44*'Input sheet '!$M$12)+($Q42*$D42*'Input sheet '!$C$45*'Input sheet '!$D$45*'Input sheet '!$M$12)+($Q42*$D42*'Input sheet '!$C$46*'Input sheet '!$D$46*'Input sheet '!$M$12))/($O42*$P42*60*(1-'Input sheet '!$F$49)) -> 65.88467454 | Z42: 67.67634663 | AA42: 69.51674157 | AB42: 71.40718434 | AC42: 73.34903592 | AD42: 75.34369434
A43: Nurse | B43: Bromley | C43: SEL | D43: 326559.5853 | E43: 333607.5681 | F43: 1.004279717 | G43: 59.57999897 | H43: NA | I43: 0.44 | J43: 0.15 | K43: 0.02 | L43: 20 | M43: 10 | N43: 60 | O43: 210 | P43: 8 | Q43: 5.5 | R43: 0.017 | S43: 59.57999897 | T43: =S43+'Input sheet '!$F$55-(S43*$I43*'Input sheet '!$F$51)-(S43*'Input sheet '!$F$53) -> 68.86031907 | U43: =T43+'Input sheet '!$F$55-(T43*$I43*'Input sheet '!$F$51)-(T43*'Input sheet '!$F$53) -> 77.24972844 | V43: =U43+'Input sheet '!$F$55-(U43*$I43*'Input sheet '!$F$51)-(U43*'Input sheet '!$F$53) -> 84.83375451 | W43: =V43+'Input sheet '!$F$55-(V43*$I43*'Input sheet '!$F$51)-(V43*'Input sheet '!$F$53) -> 91.68971408 | X43: =W43+'Input sheet '!$F$55-(W43*$I43*'Input sheet '!$F$51)-(W43*'Input sheet '!$F$53) -> 97.88750153 | Y43: =(($Q43*$D43*'Input sheet '!$C$44*'Input sheet '!$D$44*'Input sheet '!$M$12)+($Q43*$D43*'Input sheet '!$C$45*'Input sheet '!$D$45*'Input sheet '!$M$12)+($Q43*$D43*'Input sheet '!$C$46*'Input sheet '!$D$46*'Input sheet '!$M$12))/($O43*$P43*60*(1-'Input sheet '!$F$49)) -> 65.48200018 | Z43: 66.87543863 | AA43: 68.29852907 | AB43: 69.75190246 | AC43: 71.23620323 | AD43: 72.7520895
A44: Nurse | B44: Camden | C44: NCL | D44: 240595.1876 | E44: 249811.742 | F44: 1.007546694 | G44: 51.54999978 | H44: NA | I44: 0.243902439 | J44: 0.15 | K44: 0.02 | L44: 20 | M44: 10 | N44: 60 | O44: 210 | P44: 8 | Q44: 5.5 | R44: 0.017 | S44: 51.54999978 | T44: =S44+'Input sheet '!$F$55-(S44*$I44*'Input sheet '!$F$51)-(S44*'Input sheet '!$F$53) -> 63.11752418 | U44: =T44+'Input sheet '!$F$55-(T44*$I44*'Input sheet '!$F$51)-(T44*'Input sheet '!$F$53) -> 73.91482074 | V44: =U44+'Input sheet '!$F$55-(U44*$I44*'Input sheet '!$F$51)-(U44*'Input sheet '!$F$53) -> 83.99317536 | W44: =V44+'Input sheet '!$F$55-(V44*$I44*'Input sheet '!$F$51)-(V44*'Input sheet '!$F$53) -> 93.40045905 | X44: =W44+'Input sheet '!$F$55-(W44*$I44*'Input sheet '!$F$51)-(W44*'Input sheet '!$F$53) -> 102.1813553 | Y44: =(($Q44*$D44*'Input sheet '!$C$44*'Input sheet '!$D$44*'Input sheet '!$M$12)+($Q44*$D44*'Input sheet '!$C$45*'Input sheet '!$D$45*'Input sheet '!$M$12)+($Q44*$D44*'Input sheet '!$C$46*'Input sheet '!$D$46*'Input sheet '!$M$12))/($O44*$P44*60*(1-'Input sheet '!$F$49)) -> 48.24434752 | Z44: 49.42858675 | AA44: 50.64189514 | AB44: 51.88498624 | AC44: 53.15859111 | AD44: 54.46345878
A45: Nurse | B45: Central London (Westminster) | C45: NWL | D45: 239861.5274 | E45: 250416.2946 | F45: 1.00864978 | G45: 47.10999966 | H45: NA | I45: 0.4285714286 | J45: 0.15 | K45: 0.02 | L45: 20 | M45: 10 | N45: 60 | O45: 210 | P45: 8 | Q45: 5.5 | R45: 0.017 | S45: 47.10999966 | T45: =S45+'Input sheet '!$F$55-(S45*$I45*'Input sheet '!$F$51)-(S45*'Input sheet '!$F$53) -> 57.66819969 | U45: =T45+'Input sheet '!$F$55-(T45*$I45*'Input sheet '!$F$51)-(T45*'Input sheet '!$F$53) -> 67.23091229 | V45: =U45+'Input sheet '!$F$55-(U45*$I45*'Input sheet '!$F$51)-(U45*'Input sheet '!$F$53) -> 75.8919977 | W45: =V45+'Input sheet '!$F$55-(V45*$I45*'Input sheet '!$F$51)-(V45*'Input sheet '!$F$53) -> 83.73646649 | X45: =W45+'Input sheet '!$F$55-(W45*$I45*'Input sheet '!$F$51)-(W45*'Input sheet '!$F$53) -> 90.84131394 | Y45: =(($Q45*$D45*'Input sheet '!$C$44*'Input sheet '!$D$44*'Input sheet '!$M$12)+($Q45*$D45*'Input sheet '!$C$45*'Input sheet '!$D$45*'Input sheet '!$M$12)+($Q45*$D45*'Input sheet '!$C$46*'Input sheet '!$D$46*'Input sheet '!$M$12))/($O45*$P45*60*(1-'Input sheet '!$F$49)) -> 48.09723336 | Z45: 49.3309168 | AA45: 50.59624396 | AB45: 51.89402647 | AC45: 53.22509682 | AD45: 54.59030884
A46: Nurse | B46: City & Hackney | C46: NEL | D46: 279460 | E46: 298024 | F46: 1.012946054 | G46: 61.34999987 | H46: NA | I46: 0.3697478992 | J46: 0.15 | K46: 0.02 | L46: 20 | M46: 10 | N46: 60 | O46: 210 | P46: 8 | Q46: 5.5 | R46: 0.017 | S46: 61.34999987 | T46: =S46+'Input sheet '!$F$55-(S46*$I46*'Input sheet '!$F$51)-(S46*'Input sheet '!$F$53) -> 71.10689484 | U46: =T46+'Input sheet '!$F$55-(T46*$I46*'Input sheet '!$F$51)-(T46*'Input sheet '!$F$53) -> 80.02994425 | V46: =U46+'Input sheet '!$F$55-(U46*$I46*'Input sheet '!$F$51)-(U46*'Input sheet '!$F$53) -> 88.19041036 | W46: =V46+'Input sheet '!$F$55-(V46*$I46*'Input sheet '!$F$51)-(V46*'Input sheet '!$F$53) -> 95.65346521 | X46: =W46+'Input sheet '!$F$55-(W46*$I46*'Input sheet '!$F$51)-(W46*'Input sheet '!$F$53) -> 102.4787111 | Y46: =(($Q46*$D46*'Input sheet '!$C$44*'Input sheet '!$D$44*'Input sheet '!$M$12)+($Q46*$D46*'Input sheet '!$C$45*'Input sheet '!$D$45*'Input sheet '!$M$12)+($Q46*$D46*'Input sheet '!$C$46*'Input sheet '!$D$46*'Input sheet '!$M$12))/($O46*$P46*60*(1-'Input sheet '!$F$49)) -> 56.03755208 | Z46: 57.71565564 | AA46: 59.44401178 | AB46: 61.22412536 | AC46: 63.05754633 | AD46: 64.94587101
A47: Nurse | B47: Croydon | C47: SWL | D47: 383407.6197 | E47: 399552.0842 | F47: 1.008283203 | G47: 88.07999958 | H47: NA | I47: 0.3888888889 | J47: 0.15 | K47: 0.02 | L47: 20 | M47: 10 | N47: 60 | O47: 210 | P47: 8 | Q47: 5.5 | R47: 0.017 | S47: 88.07999958 | T47: =S47+'Input sheet '!$F$55-(S47*$I47*'Input sheet '!$F$51)-(S47*'Input sheet '!$F$53) -> 95.29959962 | U47: =T47+'Input sheet '!$F$55-(T47*$I47*'Input sheet '!$F$51)-(T47*'Input sheet '!$F$53) -> 101.8814683 | V47: =U47+'Input sheet '!$F$55-(U47*$I47*'Input sheet '!$F$51)-(U47*'Input sheet '!$F$53) -> 107.8819386 | W47: =V47+'Input sheet '!$F$55-(V47*$I47*'Input sheet '!$F$51)-(V47*'Input sheet '!$F$53) -> 113.3523674 | X47: =W47+'Input sheet '!$F$55-(W47*$I47*'Input sheet '!$F$51)-(W47*'Input sheet '!$F$53) -> 118.3395749 | Y47: =(($Q47*$D47*'Input sheet '!$C$44*'Input sheet '!$D$44*'Input sheet '!$M$12)+($Q47*$D47*'Input sheet '!$C$45*'Input sheet '!$D$45*'Input sheet '!$M$12)+($Q47*$D47*'Input sheet '!$C$46*'Input sheet '!$D$46*'Input sheet '!$M$12))/($O47*$P47*60*(1-'Input sheet '!$F$49)) -> 76.88121541 | Z47: 78.82501876 | AA47: 80.81796767 | AB47: 82.86130472 | AC47: 84.95630387 | AD47: 87.10427131
A48: Nurse | B48: Ealing | C48: NWL | D48: 348532.5076 | E48: 364118.8288 | F48: 1.008788143 | G48: 86.88999971 | H48: NA | I48: 0.4520547945 | J48: 0.15 | K48: 0.02 | L48: 20 | M48: 10 | N48: 60 | O48: 210 | P48: 8 | Q48: 5.5 | R48: 0.017 | S48: 86.88999971 | T48: =S48+'Input sheet '!$F$55-(S48*$I48*'Input sheet '!$F$51)-(S48*'Input sheet '!$F$53) -> 93.39144357 | U48: =T48+'Input sheet '!$F$55-(T48*$I48*'Input sheet '!$F$51)-(T48*'Input sheet '!$F$53) -> 99.25699279 | V48: =U48+'Input sheet '!$F$55-(U48*$I48*'Input sheet '!$F$51)-(U48*'Input sheet '!$F$53) -> 104.5488431 | W48: =V48+'Input sheet '!$F$55-(V48*$I48*'Input sheet '!$F$51)-(V48*'Input sheet '!$F$53) -> 109.3231069 | X48: =W48+'Input sheet '!$F$55-(W48*$I48*'Input sheet '!$F$51)-(W48*'Input sheet '!$F$53) -> 113.6304085 | Y48: =(($Q48*$D48*'Input sheet '!$C$44*'Input sheet '!$D$44*'Input sheet '!$M$12)+($Q48*$D48*'Input sheet '!$C$45*'Input sheet '!$D$45*'Input sheet '!$M$12)+($Q48*$D48*'Input sheet '!$C$46*'Input sheet '!$D$46*'Input sheet '!$M$12))/($O48*$P48*60*(1-'Input sheet '!$F$49)) -> 69.88802887 | Z48: 71.69031139 | AA48: 73.53907142 | AB48: 75.43550755 | AC48: 77.38084924 | AD48: 79.37635769
A49: Nurse | B49: Enfield | C49: NCL | D49: 330967.757 | E49: 341277.2065 | F49: 1.006153679 | G49: 52.76999961 | H49: NA | I49: 0.4528301887 | J49: 0.15 | K49: 0.02 | L49: 20 | M49: 10 | N49: 60 | O49: 210 | P49: 8 | Q49: 5.5 | R49: 0.017 | S49: 52.76999961 | T49: =S49+'Input sheet '!$F$55-(S49*$I49*'Input sheet '!$F$51)-(S49*'Input sheet '!$F$53) -> 62.60252229 | U49: =T49+'Input sheet '!$F$55-(T49*$I49*'Input sheet '!$F$51)-(T49*'Input sheet '!$F$53) -> 71.47219982 | V49: =U49+'Input sheet '!$F$55-(U49*$I49*'Input sheet '!$F$51)-(U49*'Input sheet '!$F$53) -> 79.47331837 | W49: =V49+'Input sheet '!$F$55-(V49*$I49*'Input sheet '!$F$51)-(V49*'Input sheet '!$F$53) -> 86.69093115 | X49: =W49+'Input sheet '!$F$55-(W49*$I49*'Input sheet '!$F$51)-(W49*'Input sheet '!$F$53) -> 93.20176261 | Y49: =(($Q49*$D49*'Input sheet '!$C$44*'Input sheet '!$D$44*'Input sheet '!$M$12)+($Q49*$D49*'Input sheet '!$C$45*'Input sheet '!$D$45*'Input sheet '!$M$12)+($Q49*$D49*'Input sheet '!$C$46*'Input sheet '!$D$46*'Input sheet '!$M$12))/($O49*$P49*60*(1-'Input sheet '!$F$49)) -> 66.36593043 | Z49: 67.90254585 | AA49: 69.47473957 | AB49: 71.08333535 | AC49: 72.72917605 | AD49: 74.41312401
A50: Nurse | B50: Greenwich | C50: SEL | D50: 275868.493 | E50: 300643.7565 | F50: 1.017349128 | G50: 59.11999952 | H50: NA | I50: 0.4390243902 | J50: 0.15 | K50: 0.02 | L50: 20 | M50: 10 | N50: 60 | O50: 210 | P50: 8 | Q50: 5.5 | R50: 0.017 | S50: 59.11999952 | T50: =S50+'Input sheet '!$F$55-(S50*$I50*'Input sheet '!$F$51)-(S50*'Input sheet '!$F$53) -> 68.45313127 | U50: =T50+'Input sheet '!$F$55-(T50*$I50*'Input sheet '!$F$51)-(T50*'Input sheet '!$F$53) -> 76.8916482 | V50: =U50+'Input sheet '!$F$55-(U50*$I50*'Input sheet '!$F$51)-(U50*'Input sheet '!$F$53) -> 84.52130241 | W50: =V50+'Input sheet '!$F$55-(V50*$I50*'Input sheet '!$F$51)-(V50*'Input sheet '!$F$53) -> 91.41962635 | X50: =W50+'Input sheet '!$F$55-(W50*$I50*'Input sheet '!$F$51)-(W50*'Input sheet '!$F$53) -> 97.6567207 | Y50: =(($Q50*$D50*'Input sheet '!$C$44*'Input sheet '!$D$44*'Input sheet '!$M$12)+($Q50*$D50*'Input sheet '!$C$45*'Input sheet '!$D$45*'Input sheet '!$M$12)+($Q50*$D50*'Input sheet '!$C$46*'Input sheet '!$D$46*'Input sheet '!$M$12))/($O50*$P50*60*(1-'Input sheet '!$F$49)) -> 55.31738011 | Z50: 57.2174839 | AA50: 59.1828546 | AB50: 61.21573407 | AC50: 63.31844119 | AD50: 65.49337445
A51: Nurse | B51: Hammersmith & Fulham | C51: NWL | D51: 183353.7672 | E51: 192209.9651 | F51: 1.009478823 | G51: 45.38999957 | H51: NA | I51: 0.1935483871 | J51: 0.15 | K51: 0.02 | L51: 20 | M51: 10 | N51: 60 | O51: 210 | P51: 8 | Q51: 5.5 | R51: 0.017 | S51: 45.38999957 | T51: =S51+'Input sheet '!$F$55-(S51*$I51*'Input sheet '!$F$51)-(S51*'Input sheet '!$F$53) -> 57.7105254 | U51: =T51+'Input sheet '!$F$55-(T51*$I51*'Input sheet '!$F$51)-(T51*'Input sheet '!$F$53) -> 69.30374277 | V51: =U51+'Input sheet '!$F$55-(U51*$I51*'Input sheet '!$F$51)-(U51*'Input sheet '!$F$53) -> 80.21258634 | W51: =V51+'Input sheet '!$F$55-(V51*$I51*'Input sheet '!$F$51)-(V51*'Input sheet '!$F$53) -> 90.47745625 | X51: =W51+'Input sheet '!$F$55-(W51*$I51*'Input sheet '!$F$51)-(W51*'Input sheet '!$F$53) -> 100.1363677 | Y51: =(($Q51*$D51*'Input sheet '!$C$44*'Input sheet '!$D$44*'Input sheet '!$M$12)+($Q51*$D51*'Input sheet '!$C$45*'Input sheet '!$D$45*'Input sheet '!$M$12)+($Q51*$D51*'Input sheet '!$C$46*'Input sheet '!$D$46*'Input sheet '!$M$12))/($O51*$P51*60*(1-'Input sheet '!$F$49)) -> 36.7662502 | Z51: 37.73977721 | AA51: 38.73908207 | AB51: 39.76484735 | AC51: 40.81777369 | AD51: 41.89858028
A52: Nurse | B52: Haringey | C52: NCL | D52: 274802.7844 | E52: 290455.0671 | F52: 1.011140639 | G52: 62.14999892 | H52: NA | I52: 0.3396226415 | J52: 0.15 | K52: 0.02 | L52: 20 | M52: 10 | N52: 60 | O52: 210 | P52: 8 | Q52: 5.5 | R52: 0.017 | S52: 62.14999892 | T52: =S52+'Input sheet '!$F$55-(S52*$I52*'Input sheet '!$F$51)-(S52*'Input sheet '!$F$53) -> 72.11936693 | U52: =T52+'Input sheet '!$F$55-(T52*$I52*'Input sheet '!$F$51)-(T52*'Input sheet '!$F$53) -> 81.28178044 | V52: =U52+'Input sheet '!$F$55-(U52*$I52*'Input sheet '!$F$51)-(U52*'Input sheet '!$F$53) -> 89.70255708 | W52: =V52+'Input sheet '!$F$55-(V52*$I52*'Input sheet '!$F$51)-(V52*'Input sheet '!$F$53) -> 97.44172746 | X52: =W52+'Input sheet '!$F$55-(W52*$I52*'Input sheet '!$F$51)-(W52*'Input sheet '!$F$53) -> 104.5544631 | Y52: =(($Q52*$D52*'Input sheet '!$C$44*'Input sheet '!$D$44*'Input sheet '!$M$12)+($Q52*$D52*'Input sheet '!$C$45*'Input sheet '!$D$45*'Input sheet '!$M$12)+($Q52*$D52*'Input sheet '!$C$46*'Input sheet '!$D$46*'Input sheet '!$M$12))/($O52*$P52*60*(1-'Input sheet '!$F$49)) -> 55.10368333 | Z52: 56.6543362 | AA52: 58.24862544 | AB52: 59.887779 | AC52: 61.57305938 | AD52: 63.30576464
A53: Nurse | B53: Harrow | C53: NWL | D53: 250702.932 | E53: 258522.4137 | F53: 1.006161645 | G53: 55.52999999 | H53: NA | I53: 0.3943661972 | J53: 0.15 | K53: 0.02 | L53: 20 | M53: 10 | N53: 60 | O53: 210 | P53: 8 | Q53: 5.5 | R53: 0.017 | S53: 55.52999999 | T53: =S53+'Input sheet '!$F$55-(S53*$I53*'Input sheet '!$F$51)-(S53*'Input sheet '!$F$53) -> 65.57922675 | U53: =T53+'Input sheet '!$F$55-(T53*$I53*'Input sheet '!$F$51)-(T53*'Input sheet '!$F$53) -> 74.73251541 | V53: =U53+'Input sheet '!$F$55-(U53*$I53*'Input sheet '!$F$51)-(U53*'Input sheet '!$F$53) -> 83.06974326 | W53: =V53+'Input sheet '!$F$55-(V53*$I53*'Input sheet '!$F$51)-(V53*'Input sheet '!$F$53) -> 90.66366615 | X53: =W53+'Input sheet '!$F$55-(W53*$I53*'Input sheet '!$F$51)-(W53*'Input sheet '!$F$53) -> 97.58055338 | Y53: =(($Q53*$D53*'Input sheet '!$C$44*'Input sheet '!$D$44*'Input sheet '!$M$12)+($Q53*$D53*'Input sheet '!$C$45*'Input sheet '!$D$45*'Input sheet '!$M$12)+($Q53*$D53*'Input sheet '!$C$46*'Input sheet '!$D$46*'Input sheet '!$M$12))/($O53*$P53*60*(1-'Input sheet '!$F$49)) -> 50.27116085 | Z53: 51.43552361 | AA53: 52.62685493 | AB53: 53.84577944 | AC53: 55.09293625 | AD53: 56.36897926
A54: Nurse | B54: Havering | C54: NEL | D54: 251610.7349 | E54: 265446.8105 | F54: 1.010763776 | G54: 61.83999962 | H54: NA | I54: 0.44 | J54: 0.15 | K54: 0.02 | L54: 20 | M54: 10 | N54: 60 | O54: 210 | P54: 8 | Q54: 5.5 | R54: 0.017 | S54: 61.83999962 | T54: =S54+'Input sheet '!$F$55-(S54*$I54*'Input sheet '!$F$51)-(S54*'Input sheet '!$F$53) -> 70.90335965 | U54: =T54+'Input sheet '!$F$55-(T54*$I54*'Input sheet '!$F$51)-(T54*'Input sheet '!$F$53) -> 79.09663713 | V54: =U54+'Input sheet '!$F$55-(U54*$I54*'Input sheet '!$F$51)-(U54*'Input sheet '!$F$53) -> 86.50335996 | W54: =V54+'Input sheet '!$F$55-(V54*$I54*'Input sheet '!$F$51)-(V54*'Input sheet '!$F$53) -> 93.19903741 | X54: =W54+'Input sheet '!$F$55-(W54*$I54*'Input sheet '!$F$51)-(W54*'Input sheet '!$F$53) -> 99.25192981 | Y54: =(($Q54*$D54*'Input sheet '!$C$44*'Input sheet '!$D$44*'Input sheet '!$M$12)+($Q54*$D54*'Input sheet '!$C$45*'Input sheet '!$D$45*'Input sheet '!$M$12)+($Q54*$D54*'Input sheet '!$C$46*'Input sheet '!$D$46*'Input sheet '!$M$12))/($O54*$P54*60*(1-'Input sheet '!$F$49)) -> 50.45319424 | Z54: 51.85396541 | AA54: 53.29362727 | AB54: 54.77325958 | AC54: 56.29397207 | AD54: 57.85690528
A55: Nurse | B55: Hillingdon | C55: NWL | D55: 299473.6783 | E55: 307062.0456 | F55: 1.005017205 | G55: 57.47999976 | H55: NA | I55: 0.5185185185 | J55: 0.15 | K55: 0.02 | L55: 20 | M55: 10 | N55: 60 | O55: 210 | P55: 8 | Q55: 5.5 | R55: 0.017 | S55: 57.47999976 | T55: =S55+'Input sheet '!$F$55-(S55*$I55*'Input sheet '!$F$51)-(S55*'Input sheet '!$F$53) -> 66.28493312 | U55: =T55+'Input sheet '!$F$55-(T55*$I55*'Input sheet '!$F$51)-(T55*'Input sheet '!$F$53) -> 74.14089033 | V55: =U55+'Input sheet '!$F$55-(U55*$I55*'Input sheet '!$F$51)-(U55*'Input sheet '!$F$53) -> 81.15014992 | W55: =V55+'Input sheet '!$F$55-(V55*$I55*'Input sheet '!$F$51)-(V55*'Input sheet '!$F$53) -> 87.4039671 | X55: =W55+'Input sheet '!$F$55-(W55*$I55*'Input sheet '!$F$51)-(W55*'Input sheet '!$F$53) -> 92.98376176 | Y55: =(($Q55*$D55*'Input sheet '!$C$44*'Input sheet '!$D$44*'Input sheet '!$M$12)+($Q55*$D55*'Input sheet '!$C$45*'Input sheet '!$D$45*'Input sheet '!$M$12)+($Q55*$D55*'Input sheet '!$C$46*'Input sheet '!$D$46*'Input sheet '!$M$12))/($O55*$P55*60*(1-'Input sheet '!$F$49)) -> 60.05071153 | Z55: 61.37286033 | AA55: 62.72411916 | AB55: 64.10512893 | AC55: 65.51654467 | AD55: 66.95903584
A56: Nurse | B56: Hounslow | C56: NWL | D56: 272101.6454 | E56: 282830.2214 | F56: 1.007764206 | G56: 65.01999886 | H56: NA | I56: 0.4150943396 | J56: 0.15 | K56: 0.02 | L56: 20 | M56: 10 | N56: 60 | O56: 210 | P56: 8 | Q56: 5.5 | R56: 0.017 | S56: 65.01999886 | T56: =S56+'Input sheet '!$F$55-(S56*$I56*'Input sheet '!$F$51)-(S56*'Input sheet '!$F$53) -> 74.02098387 | U56: =T56+'Input sheet '!$F$55-(T56*$I56*'Input sheet '!$F$51)-(T56*'Input sheet '!$F$53) -> 82.19150064 | V56: =U56+'Input sheet '!$F$55-(U56*$I56*'Input sheet '!$F$51)-(U56*'Input sheet '!$F$53) -> 89.60817162 | W56: =V56+'Input sheet '!$F$55-(V56*$I56*'Input sheet '!$F$51)-(V56*'Input sheet '!$F$53) -> 96.34054975 | X56: =W56+'Input sheet '!$F$55-(W56*$I56*'Input sheet '!$F$51)-(W56*'Input sheet '!$F$53) -> 102.4517707 | Y56: =(($Q56*$D56*'Input sheet '!$C$44*'Input sheet '!$D$44*'Input sheet '!$M$12)+($Q56*$D56*'Input sheet '!$C$45*'Input sheet '!$D$45*'Input sheet '!$M$12)+($Q56*$D56*'Input sheet '!$C$46*'Input sheet '!$D$46*'Input sheet '!$M$12))/($O56*$P56*60*(1-'Input sheet '!$F$49)) -> 54.56204869 | Z56: 55.91323453 | AA56: 57.29788141 | AB56: 58.71681797 | AC56: 60.17089338 | AD56: 61.6609778
A57: Nurse | B57: Islington | C57: NCL | D57: 228397.1873 | E57: 241248.224 | F57: 1.011008192 | G57: 47.68999979 | H57: NA | I57: 0.3088235294 | J57: 0.15 | K57: 0.02 | L57: 20 | M57: 10 | N57: 60 | O57: 210 | P57: 8 | Q57: 5.5 | R57: 0.017 | S57: 47.68999979 | T57: =S57+'Input sheet '!$F$55-(S57*$I57*'Input sheet '!$F$51)-(S57*'Input sheet '!$F$53) -> 59.05013069 | U57: =T57+'Input sheet '!$F$55-(T57*$I57*'Input sheet '!$F$51)-(T57*'Input sheet '!$F$53) -> 69.5432163 | V57: =U57+'Input sheet '!$F$55-(U57*$I57*'Input sheet '!$F$51)-(U57*'Input sheet '!$F$53) -> 79.23543259 | W57: =V57+'Input sheet '!$F$55-(V57*$I57*'Input sheet '!$F$51)-(V57*'Input sheet '!$F$53) -> 88.18790472 | X57: =W57+'Input sheet '!$F$55-(W57*$I57*'Input sheet '!$F$51)-(W57*'Input sheet '!$F$53) -> 96.45709258 | Y57: =(($Q57*$D57*'Input sheet '!$C$44*'Input sheet '!$D$44*'Input sheet '!$M$12)+($Q57*$D57*'Input sheet '!$C$45*'Input sheet '!$D$45*'Input sheet '!$M$12)+($Q57*$D57*'Input sheet '!$C$46*'Input sheet '!$D$46*'Input sheet '!$M$12))/($O57*$P57*60*(1-'Input sheet '!$F$49)) -> 45.79839433 | Z57: 47.08112456 | AA57: 48.39978175 | AB57: 49.75537215 | AC57: 51.14893018 | AD57: 52.58151925
A58: Nurse | B58: Kingston | C58: SWL | D58: 173853.3709 | E58: 181326.684 | F58: 1.008453136 | G58: 45.16999982 | H58: NA | I58: 0.2526315789 | J58: 0.15 | K58: 0.02 | L58: 20 | M58: 10 | N58: 60 | O58: 210 | P58: 8 | Q58: 5.5 | R58: 0.017 | S58: 45.16999982 | T58: =S58+'Input sheet '!$F$55-(S58*$I58*'Input sheet '!$F$51)-(S58*'Input sheet '!$F$53) -> 57.10319457 | U58: =T58+'Input sheet '!$F$55-(T58*$I58*'Input sheet '!$F$51)-(T58*'Input sheet '!$F$53) -> 68.2261882 | V58: =U58+'Input sheet '!$F$55-(U58*$I58*'Input sheet '!$F$51)-(U58*'Input sheet '!$F$53) -> 78.59398911 | W58: =V58+'Input sheet '!$F$55-(V58*$I58*'Input sheet '!$F$51)-(V58*'Input sheet '!$F$53) -> 88.2578709 | X58: =W58+'Input sheet '!$F$55-(W58*$I58*'Input sheet '!$F$51)-(W58*'Input sheet '!$F$53) -> 97.26562598 | Y58: =(($Q58*$D58*'Input sheet '!$C$44*'Input sheet '!$D$44*'Input sheet '!$M$12)+($Q58*$D58*'Input sheet '!$C$45*'Input sheet '!$D$45*'Input sheet '!$M$12)+($Q58*$D58*'Input sheet '!$C$46*'Input sheet '!$D$46*'Input sheet '!$M$12))/($O58*$P58*60*(1-'Input sheet '!$F$49)) -> 34.86122281 | Z58: 35.74855025 | AA58: 36.65846295 | AB58: 37.59153579 | AC58: 38.54835825 | AD58: 39.52953485
A59: Nurse | B59: Lambeth | C59: SEL | D59: 325454.6437 | E59: 342398.23 | F59: 1.010201962 | G59: 74.16000007 | H59: NA | I59: 0.2686567164 | J59: 0.15 | K59: 0.02 | L59: 20 | M59: 10 | N59: 60 | O59: 210 | P59: 8 | Q59: 5.5 | R59: 0.017 | S59: 74.16000007 | T59: =S59+'Input sheet '!$F$55-(S59*$I59*'Input sheet '!$F$51)-(S59*'Input sheet '!$F$53) -> 83.94666275 | U59: =T59+'Input sheet '!$F$55-(T59*$I59*'Input sheet '!$F$51)-(T59*'Input sheet '!$F$53) -> 93.04533765 | V59: =U59+'Input sheet '!$F$55-(U59*$I59*'Input sheet '!$F$51)-(U59*'Input sheet '!$F$53) -> 101.5043893 | W59: =V59+'Input sheet '!$F$55-(V59*$I59*'Input sheet '!$F$51)-(V59*'Input sheet '!$F$53) -> 109.3687822 | X59: =W59+'Input sheet '!$F$55-(W59*$I59*'Input sheet '!$F$51)-(W59*'Input sheet '!$F$53) -> 116.6803201 | Y59: =(($Q59*$D59*'Input sheet '!$C$44*'Input sheet '!$D$44*'Input sheet '!$M$12)+($Q59*$D59*'Input sheet '!$C$45*'Input sheet '!$D$45*'Input sheet '!$M$12)+($Q59*$D59*'Input sheet '!$C$46*'Input sheet '!$D$46*'Input sheet '!$M$12))/($O59*$P59*60*(1-'Input sheet '!$F$49)) -> 65.26043636 | Z59: 67.03564827 | AA59: 68.85914943 | AB59: 70.7322534 | AC59: 72.65630948 | AD59: 74.63270365
A60: Nurse | B60: Lewisham | C60: SEL | D60: 299817.3844 | E60: 316842.3797 | F60: 1.011107405 | G60: 66.38999967 | H60: NA | I60: 0.4864864865 | J60: 0.15 | K60: 0.02 | L60: 20 | M60: 10 | N60: 60 | O60: 210 | P60: 8 | Q60: 5.5 | R60: 0.017 | S60: 66.38999967 | T60: =S60+'Input sheet '!$F$55-(S60*$I60*'Input sheet '!$F$51)-(S60*'Input sheet '!$F$53) -> 74.55362403 | U60: =T60+'Input sheet '!$F$55-(T60*$I60*'Input sheet '!$F$51)-(T60*'Input sheet '!$F$53) -> 81.87661572 | V60: =U60+'Input sheet '!$F$55-(U60*$I60*'Input sheet '!$F$51)-(U60*'Input sheet '!$F$53) -> 88.44553718 | W60: =V60+'Input sheet '!$F$55-(V60*$I60*'Input sheet '!$F$51)-(V60*'Input sheet '!$F$53) -> 94.33803727 | X60: =W60+'Input sheet '!$F$55-(W60*$I60*'Input sheet '!$F$51)-(W60*'Input sheet '!$F$53) -> 99.62376911 | Y60: =(($Q60*$D60*'Input sheet '!$C$44*'Input sheet '!$D$44*'Input sheet '!$M$12)+($Q60*$D60*'Input sheet '!$C$45*'Input sheet '!$D$45*'Input sheet '!$M$12)+($Q60*$D60*'Input sheet '!$C$46*'Input sheet '!$D$46*'Input sheet '!$M$12))/($O60*$P60*60*(1-'Input sheet '!$F$49)) -> 60.11963177 | Z60: 61.80943862 | AA60: 63.54674155 | AB60: 65.33287555 | AC60: 67.16921315 | AD60: 69.05716544
A61: Nurse | B61: Merton | C61: SWL | D61: 207140.6699 | E61: 212185.0439 | F61: 1.00482372 | G61: 47.23999976 | H61: NA | I61: 0.4375 | J61: 0.15 | K61: 0.02 | L61: 20 | M61: 10 | N61: 60 | O61: 210 | P61: 8 | Q61: 5.5 | R61: 0.017 | S61: 47.23999976 | T61: =S61+'Input sheet '!$F$55-(S61*$I61*'Input sheet '!$F$51)-(S61*'Input sheet '!$F$53) -> 57.72267478 | U61: =T61+'Input sheet '!$F$55-(T61*$I61*'Input sheet '!$F$51)-(T61*'Input sheet '!$F$53) -> 67.202944 | V61: =U61+'Input sheet '!$F$55-(U61*$I61*'Input sheet '!$F$51)-(U61*'Input sheet '!$F$53) -> 75.77666248 | W61: =V61+'Input sheet '!$F$55-(V61*$I61*'Input sheet '!$F$51)-(V61*'Input sheet '!$F$53) -> 83.53051913 | X61: =W61+'Input sheet '!$F$55-(W61*$I61*'Input sheet '!$F$51)-(W61*'Input sheet '!$F$53) -> 90.54291324 | Y61: =(($Q61*$D61*'Input sheet '!$C$44*'Input sheet '!$D$44*'Input sheet '!$M$12)+($Q61*$D61*'Input sheet '!$C$45*'Input sheet '!$D$45*'Input sheet '!$M$12)+($Q61*$D61*'Input sheet '!$C$46*'Input sheet '!$D$46*'Input sheet '!$M$12))/($O61*$P61*60*(1-'Input sheet '!$F$49)) -> 41.53601975 | Z61: 42.44249021 | AA61: 43.36874323 | AB61: 44.31521053 | AC61: 45.28233327 | AD61: 46.27056223
A62: Nurse | B62: Newham | C62: NEL | D62: 337378.1807 | E62: 362819.6276 | F62: 1.014646487 | G62: 74.25999911 | H62: NA | I62: 0.3913043478 | J62: 0.15 | K62: 0.02 | L62: 20 | M62: 10 | N62: 60 | O62: 210 | P62: 8 | Q62: 5.5 | R62: 0.017 | S62: 74.25999911 | T62: =S62+'Input sheet '!$F$55-(S62*$I62*'Input sheet '!$F$51)-(S62*'Input sheet '!$F$53) -> 82.67346006 | U62: =T62+'Input sheet '!$F$55-(T62*$I62*'Input sheet '!$F$51)-(T62*'Input sheet '!$F$53) -> 90.3406836 | V62: =U62+'Input sheet '!$F$55-(U62*$I62*'Input sheet '!$F$51)-(U62*'Input sheet '!$F$53) -> 97.32785775 | W62: =V62+'Input sheet '!$F$55-(V62*$I62*'Input sheet '!$F$51)-(V62*'Input sheet '!$F$53) -> 103.6952999 | X62: =W62+'Input sheet '!$F$55-(W62*$I62*'Input sheet '!$F$51)-(W62*'Input sheet '!$F$53) -> 109.4979777 | Y62: =(($Q62*$D62*'Input sheet '!$C$44*'Input sheet '!$D$44*'Input sheet '!$M$12)+($Q62*$D62*'Input sheet '!$C$45*'Input sheet '!$D$45*'Input sheet '!$M$12)+($Q62*$D62*'Input sheet '!$C$46*'Input sheet '!$D$46*'Input sheet '!$M$12))/($O62*$P62*60*(1-'Input sheet '!$F$49)) -> 67.65135394 | Z62: 69.79228166 | AA62: 72.00096223 | AB62: 74.27953978 | AC62: 76.63022631 | AD62: 79.0553038
A63: Nurse | B63: Redbridge | C63: NEL | D63: 301021.6161 | E63: 316853.4049 | F63: 1.010304155 | G63: 47.7199996 | H63: NA | I63: 0.3529411765 | J63: 0.15 | K63: 0.02 | L63: 20 | M63: 10 | N63: 60 | O63: 210 | P63: 8 | Q63: 5.5 | R63: 0.017 | S63: 47.7199996 | T63: =S63+'Input sheet '!$F$55-(S63*$I63*'Input sheet '!$F$51)-(S63*'Input sheet '!$F$53) -> 58.7620467 | U63: =T63+'Input sheet '!$F$55-(T63*$I63*'Input sheet '!$F$51)-(T63*'Input sheet '!$F$53) -> 68.88825341 | V63: =U63+'Input sheet '!$F$55-(U63*$I63*'Input sheet '!$F$51)-(U63*'Input sheet '!$F$53) -> 78.17458063 | W63: =V63+'Input sheet '!$F$55-(V63*$I63*'Input sheet '!$F$51)-(V63*'Input sheet '!$F$53) -> 86.69068894 | X63: =W63+'Input sheet '!$F$55-(W63*$I63*'Input sheet '!$F$51)-(W63*'Input sheet '!$F$53) -> 94.50046121 | Y63: =(($Q63*$D63*'Input sheet '!$C$44*'Input sheet '!$D$44*'Input sheet '!$M$12)+($Q63*$D63*'Input sheet '!$C$45*'Input sheet '!$D$45*'Input sheet '!$M$12)+($Q63*$D63*'Input sheet '!$C$46*'Input sheet '!$D$46*'Input sheet '!$M$12))/($O63*$P63*60*(1-'Input sheet '!$F$49)) -> 60.36110532 | Z63: 62.00921429 | AA63: 63.70232348 | AB63: 65.4416616 | AC63: 67.22849086 | AD63: 69.064108
A64: Nurse | B64: Richmond | C64: SWL | D64: 196602.2286 | E64: 200158.6816 | F64: 1.003592019 | G64: 35.68999985 | H64: NA | I64: 0.5 | J64: 0.15 | K64: 0.02 | L64: 20 | M64: 10 | N64: 60 | O64: 210 | P64: 8 | Q64: 5.5 | R64: 0.017 | S64: 35.68999985 | T64: =S64+'Input sheet '!$F$55-(S64*$I64*'Input sheet '!$F$51)-(S64*'Input sheet '!$F$53) -> 46.94254986 | U64: =T64+'Input sheet '!$F$55-(T64*$I64*'Input sheet '!$F$51)-(T64*'Input sheet '!$F$53) -> 57.01358213 | V64: =U64+'Input sheet '!$F$55-(U64*$I64*'Input sheet '!$F$51)-(U64*'Input sheet '!$F$53) -> 66.02715601 | W64: =V64+'Input sheet '!$F$55-(V64*$I64*'Input sheet '!$F$51)-(V64*'Input sheet '!$F$53) -> 74.09430462 | X64: =W64+'Input sheet '!$F$55-(W64*$I64*'Input sheet '!$F$51)-(W64*'Input sheet '!$F$53) -> 81.31440264 | Y64: =(($Q64*$D64*'Input sheet '!$C$44*'Input sheet '!$D$44*'Input sheet '!$M$12)+($Q64*$D64*'Input sheet '!$C$45*'Input sheet '!$D$45*'Input sheet '!$M$12)+($Q64*$D64*'Input sheet '!$C$46*'Input sheet '!$D$46*'Input sheet '!$M$12))/($O64*$P64*60*(1-'Input sheet '!$F$49)) -> 39.42284272 | Z64: 40.23463865 | AA64: 41.06315111 | AB64: 41.9087243 | AC64: 42.77170956 | AD64: 43.65246543
A65: Nurse | B65: Southwark | C65: SEL | D65: 310642.3523 | E65: 332523.7542 | F65: 1.013706898 | G65: 70.04999965 | H65: NA | I65: 0.4181818182 | J65: 0.15 | K65: 0.02 | L65: 20 | M65: 10 | N65: 60 | O65: 210 | P65: 8 | Q65: 5.5 | R65: 0.017 | S65: 70.04999965 | T65: =S65+'Input sheet '!$F$55-(S65*$I65*'Input sheet '!$F$51)-(S65*'Input sheet '!$F$53) -> 78.55445423 | U65: =T65+'Input sheet '!$F$55-(T65*$I65*'Input sheet '!$F$51)-(T65*'Input sheet '!$F$53) -> 86.27031393 | V65: =U65+'Input sheet '!$F$55-(U65*$I65*'Input sheet '!$F$51)-(U65*'Input sheet '!$F$53) -> 93.270703 | W65: =V65+'Input sheet '!$F$55-(V65*$I65*'Input sheet '!$F$51)-(V65*'Input sheet '!$F$53) -> 99.62196509 | X65: =W65+'Input sheet '!$F$55-(W65*$I65*'Input sheet '!$F$51)-(W65*'Input sheet '!$F$53) -> 105.384292 | Y65: =(($Q65*$D65*'Input sheet '!$C$44*'Input sheet '!$D$44*'Input sheet '!$M$12)+($Q65*$D65*'Input sheet '!$C$45*'Input sheet '!$D$45*'Input sheet '!$M$12)+($Q65*$D65*'Input sheet '!$C$46*'Input sheet '!$D$46*'Input sheet '!$M$12))/($O65*$P65*60*(1-'Input sheet '!$F$49)) -> 62.29026336 | Z65: 64.20300412 | AA65: 66.17447922 | AB65: 68.20649221 | AC65: 70.30090201 | AD65: 72.45962464
A66: Nurse | B66: Sutton | C66: SWL | D66: 201750.7963 | E66: 205926.3036 | F66: 1.004105424 | G66: 40.93999991 | H66: NA | I66: 0.1954022989 | J66: 0.15 | K66: 0.02 | L66: 20 | M66: 10 | N66: 60 | O66: 210 | P66: 8 | Q66: 5.5 | R66: 0.017 | S66: 40.93999991 | T66: =S66+'Input sheet '!$F$55-(S66*$I66*'Input sheet '!$F$51)-(S66*'Input sheet '!$F$53) -> 53.5118344 | U66: =T66+'Input sheet '!$F$55-(T66*$I66*'Input sheet '!$F$51)-(T66*'Input sheet '!$F$53) -> 65.33802905 | V66: =U66+'Input sheet '!$F$55-(U66*$I66*'Input sheet '!$F$51)-(U66*'Input sheet '!$F$53) -> 76.46280801 | W66: =V66+'Input sheet '!$F$55-(V66*$I66*'Input sheet '!$F$51)-(V66*'Input sheet '!$F$53) -> 86.9277725 | X66: =W66+'Input sheet '!$F$55-(W66*$I66*'Input sheet '!$F$51)-(W66*'Input sheet '!$F$53) -> 96.77205634 | Y66: =(($Q66*$D66*'Input sheet '!$C$44*'Input sheet '!$D$44*'Input sheet '!$M$12)+($Q66*$D66*'Input sheet '!$C$45*'Input sheet '!$D$45*'Input sheet '!$M$12)+($Q66*$D66*'Input sheet '!$C$46*'Input sheet '!$D$46*'Input sheet '!$M$12))/($O66*$P66*60*(1-'Input sheet '!$F$49)) -> 40.4552378 | Z66: 41.30906277 | AA66: 42.18090807 | AB66: 43.07115404 | AC66: 43.98018903 | AD66: 44.90840958
A67: Nurse | B67: Tower Hamlets | C67: NEL | D67: 297804.9566 | E67: 337617.385 | F67: 1.025412426 | G67: 77.32999999 | H67: NA | I67: 0.5409836066 | J67: 0.15 | K67: 0.02 | L67: 20 | M67: 10 | N67: 60 | O67: 210 | P67: 8 | Q67: 5.5 | R67: 0.017 | S67: 77.32999999 | T67: =S67+'Input sheet '!$F$55-(S67*$I67*'Input sheet '!$F$51)-(S67*'Input sheet '!$F$53) -> 83.73496065 | U67: =T67+'Input sheet '!$F$55-(T67*$I67*'Input sheet '!$F$51)-(T67*'Input sheet '!$F$53) -> 89.42802568 | V67: =U67+'Input sheet '!$F$55-(U67*$I67*'Input sheet '!$F$51)-(U67*'Input sheet '!$F$53) -> 94.48832053 | W67: =V67+'Input sheet '!$F$55-(V67*$I67*'Input sheet '!$F$51)-(V67*'Input sheet '!$F$53) -> 98.98617605 | X67: =W67+'Input sheet '!$F$55-(W67*$I67*'Input sheet '!$F$51)-(W67*'Input sheet '!$F$53) -> 102.984106 | Y67: =(($Q67*$D67*'Input sheet '!$C$44*'Input sheet '!$D$44*'Input sheet '!$M$12)+($Q67*$D67*'Input sheet '!$C$45*'Input sheet '!$D$45*'Input sheet '!$M$12)+($Q67*$D67*'Input sheet '!$C$46*'Input sheet '!$D$46*'Input sheet '!$M$12))/($O67*$P67*60*(1-'Input sheet '!$F$49)) -> 59.71609806 | Z67: 62.24880266 | AA67: 64.88892541 | AB67: 67.64102217 | AC67: 70.50984203 | AD67: 73.50033549
A68: Nurse | B68: Waltham Forest | C68: NEL | D68: 274139.4078 | E68: 284554.6096 | F68: 1.007485562 | G68: 55.76999946 | H68: NA | I68: 0.3516483516 | J68: 0.15 | K68: 0.02 | L68: 20 | M68: 10 | N68: 60 | O68: 210 | P68: 8 | Q68: 5.5 | R68: 0.017 | S68: 55.76999946 | T68: =S68+'Input sheet '!$F$55-(S68*$I68*'Input sheet '!$F$51)-(S68*'Input sheet '!$F$53) -> 66.15518522 | U68: =T68+'Input sheet '!$F$55-(T68*$I68*'Input sheet '!$F$51)-(T68*'Input sheet '!$F$53) -> 75.68102539 | V68: =U68+'Input sheet '!$F$55-(U68*$I68*'Input sheet '!$F$51)-(U68*'Input sheet '!$F$53) -> 84.41862845 | W68: =V68+'Input sheet '!$F$55-(V68*$I68*'Input sheet '!$F$51)-(V68*'Input sheet '!$F$53) -> 92.43321887 | X68: =W68+'Input sheet '!$F$55-(W68*$I68*'Input sheet '!$F$51)-(W68*'Input sheet '!$F$53) -> 99.78462394 | Y68: =(($Q68*$D68*'Input sheet '!$C$44*'Input sheet '!$D$44*'Input sheet '!$M$12)+($Q68*$D68*'Input sheet '!$C$45*'Input sheet '!$D$45*'Input sheet '!$M$12)+($Q68*$D68*'Input sheet '!$C$46*'Input sheet '!$D$46*'Input sheet '!$M$12))/($O68*$P68*60*(1-'Input sheet '!$F$49)) -> 54.97066251 | Z68: 56.31665006 | AA68: 57.69559487 | AB68: 59.10830392 | AC68: 60.55560395 | AD68: 62.03834193
A69: Nurse | B69: Wandsworth | C69: SWL | D69: 318253.4708 | E69: 331558.5638 | F69: 1.008224903 | G69: 82.10999964 | H69: NA | I69: 0.3720930233 | J69: 0.15 | K69: 0.02 | L69: 20 | M69: 10 | N69: 60 | O69: 210 | P69: 8 | Q69: 5.5 | R69: 0.017 | S69: 82.10999964 | T69: =S69+'Input sheet '!$F$55-(S69*$I69*'Input sheet '!$F$51)-(S69*'Input sheet '!$F$53) -> 90.06381595 | U69: =T69+'Input sheet '!$F$55-(T69*$I69*'Input sheet '!$F$51)-(T69*'Input sheet '!$F$53) -> 97.33508384 | V69: =U69+'Input sheet '!$F$55-(U69*$I69*'Input sheet '!$F$51)-(U69*'Input sheet '!$F$53) -> 103.9823755 | W69: =V69+'Input sheet '!$F$55-(V69*$I69*'Input sheet '!$F$51)-(V69*'Input sheet '!$F$53) -> 110.0592367 | X69: =W69+'Input sheet '!$F$55-(W69*$I69*'Input sheet '!$F$51)-(W69*'Input sheet '!$F$53) -> 115.6146185 | Y69: =(($Q69*$D69*'Input sheet '!$C$44*'Input sheet '!$D$44*'Input sheet '!$M$12)+($Q69*$D69*'Input sheet '!$C$45*'Input sheet '!$D$45*'Input sheet '!$M$12)+($Q69*$D69*'Input sheet '!$C$46*'Input sheet '!$D$46*'Input sheet '!$M$12))/($O69*$P69*60*(1-'Input sheet '!$F$49)) -> 63.81645118 | Z69: 65.42621496 | AA69: 67.07658488 | AB69: 68.76858523 | AC69: 70.50326611 | AD69: 72.28170415
A70: Nurse | B70: West London (K&C & QPP) | C70: NWL | D70: 158447.2042 | E70: 161987.1734 | F70: 1.004428922 | G70: 52.95999966 | H70: NA | I70: 0.2857142857 | J70: 0.15 | K70: 0.02 | L70: 20 | M70: 10 | N70: 60 | O70: 210 | P70: 8 | Q70: 5.5 | R70: 0.017 | S70: 52.95999966 | T70: =S70+'Input sheet '!$F$55-(S70*$I70*'Input sheet '!$F$51)-(S70*'Input sheet '!$F$53) -> 64.1014854 | U70: =T70+'Input sheet '!$F$55-(T70*$I70*'Input sheet '!$F$51)-(T70*'Input sheet '!$F$53) -> 74.43123432 | V70: =U70+'Input sheet '!$F$55-(U70*$I70*'Input sheet '!$F$51)-(U70*'Input sheet '!$F$53) -> 84.00838725 | W70: =V70+'Input sheet '!$F$55-(V70*$I70*'Input sheet '!$F$51)-(V70*'Input sheet '!$F$53) -> 92.88777618 | X70: =W70+'Input sheet '!$F$55-(W70*$I70*'Input sheet '!$F$51)-(W70*'Input sheet '!$F$53) -> 101.1202382 | Y70: =(($Q70*$D70*'Input sheet '!$C$44*'Input sheet '!$D$44*'Input sheet '!$M$12)+($Q70*$D70*'Input sheet '!$C$45*'Input sheet '!$D$45*'Input sheet '!$M$12)+($Q70*$D70*'Input sheet '!$C$46*'Input sheet '!$D$46*'Input sheet '!$M$12))/($O70*$P70*60*(1-'Input sheet '!$F$49)) -> 31.77196543 | Z70: 32.45280439 | AA70: 33.14823299 | AB70: 33.85856388 | AC70: 34.5841164 | AD70: 35.32521672
S71: =SUM(S39:S70) -> 1906.879988 | X71: =SUM(X39:X70) -> 3216.030408 | Y71: =SUM(Y39:Y70) -> 1754.708219 | AD71: =SUM(AD39:AD70) -> 2002.783939
X72: =(X71-S71)/S71 -> 0.6865405419 | AD72: =(AD71-Y71)/Y71 -> 0.1413771915
S74: 2016 | T74: 2017 | U74: 2018 | V74: 2019 | W74: 2020 | X74: 2021 | Y74: 2016 | Z74: 2017 | AA74: 2018 | AB74: 2019 | AC74: 2020 | AD74: 2021 | AI74: 2016 | AJ74: 2017 | AK74: 2018 | AL74: 2019 | AM74: 2020 | AN74: 2021
A75: Other | B75: Barking & Dagenham | C75: NEL | D75: 205773.0092 | E75: 222143.3815 | F75: 1.015427671 | G75: 15.30000007 | H75: NA | I75: 0.2 | J75: 0.1 | K75: 0.02 | L75: 17 | M75: 10 | N75: 45 | O75: 210 | P75: 8 | Q75: 5.5 | R75: 0.017 | S75: =G75 -> 15.30000007 | T75: =S75+'Input sheet '!$F$75-(S75*$I75*'Input sheet '!$F$71)-(S75*'Input sheet '!$F$73) -> 19.53500007 | U75: =T75+'Input sheet '!$F$75-(T75*$I75*'Input sheet '!$F$71)-(T75*'Input sheet '!$F$73) -> 23.55825006 | V75: =U75+'Input sheet '!$F$75-(U75*$I75*'Input sheet '!$F$71)-(U75*'Input sheet '!$F$73) -> 27.38033756 | W75: =V75+'Input sheet '!$F$75-(V75*$I75*'Input sheet '!$F$71)-(V75*'Input sheet '!$F$73) -> 31.01132068 | X75: =W75+'Input sheet '!$F$75-(W75*$I75*'Input sheet '!$F$71)-(W75*'Input sheet '!$F$73) -> 34.46075465 | Y75: =(($Q75*$D75*'Input sheet '!$C$63*'Input sheet '!$D$63*'Input sheet '!$M$13)+($Q75*$D75*'Input sheet '!$C$64*'Input sheet '!$D$64*'Input sheet '!$M$13)+($Q75*$D75*'Input sheet '!$C$65*'Input sheet '!$D$65*'Input sheet '!$M$13))/($O75*$P75*60*(1-'Input sheet '!$F$69)) -> 18.42662714 | Z75: =Y75*($F75+$R75) -> 19.02415974 | AA75: =Z75*($F75+$R75) -> 19.64106893 | AB75: 20.27798305 | AC75: 20.93555081 | AD75: 21.61444196 | AH75: Other Supply | AI75: =IF('Input sheet '!$H$14="All",SUMIF('Data back sheet '!$C75:$C106,'Input sheet '!$H$11,'Data back sheet '!S75:S106),VLOOKUP('Input sheet '!$H$14,'Data back sheet '!$B$75:$AD$106,18,FALSE)) -> 17.31 | AJ75: =IF('Input sheet '!$H$14="All",SUMIF('Data back sheet '!$C75:$C106,'Input sheet '!$H$11,'Data back sheet '!T75:T106),VLOOKUP('Input sheet '!$H$14,'Data back sheet '!$B$75:$AD$106,19,FALSE)) -> 21.39729091 | AK75: =IF('Input sheet '!$H$14="All",SUMIF('Data back sheet '!$C75:$C106,'Input sheet '!$H$11,'Data back sheet '!U75:U106),VLOOKUP('Input sheet '!$H$14,'Data back sheet '!$B$75:$AD$106,20,FALSE)) -> 25.26907012 | AL75: =IF('Input sheet '!$H$14="All",SUMIF('Data back sheet '!$C75:$C106,'Input sheet '!$H$11,'Data back sheet '!V75:V106),VLOOKUP('Input sheet '!$H$14,'Data back sheet '!$B$75:$AD$106,21,FALSE)) -> 28.93670097 | AM75: =IF('Input sheet '!$H$14="All",SUMIF('Data back sheet '!$C75:$C106,'Input sheet '!$H$11,'Data back sheet '!W75:W106),VLOOKUP('Input sheet '!$H$14,'Data back sheet '!$B$75:$AD$106,22,FALSE)) -> 32.41094764 | AN75: =IF('Input sheet '!$H$14="All",SUMIF('Data back sheet '!$C75:$C106,'Input sheet '!$H$11,'Data back sheet '!X75:X106),VLOOKUP('Input sheet '!$H$14,'Data back sheet '!$B$75:$AD$106,23,FALSE)) -> 35.70200677
A76: Other | B76: Barnet | C76: NCL | D76: 385107.6572 | E76: 409895.3742 | F76: 1.012553951 | G76: 35.47000033 | H76: NA | I76: 0.1290322581 | J76: 0.1 | K76: 0.02 | L76: 17 | M76: 10 | N76: 45 | O76: 210 | P76: 8 | Q76: 5.5 | R76: 0.017 | S76: =G76 -> 35.47000033 | T76: =S76+'Input sheet '!$F$75-(S76*$I76*'Input sheet '!$F$71)-(S76*'Input sheet '!$F$73) -> 38.94822289 | U76: =T76+'Input sheet '!$F$75-(T76*$I76*'Input sheet '!$F$71)-(T76*'Input sheet '!$F$73) -> 42.27721849 | V76: =U76+'Input sheet '!$F$75-(U76*$I76*'Input sheet '!$F$71)-(U76*'Input sheet '!$F$73) -> 45.46338944 | W76: =V76+'Input sheet '!$F$75-(V76*$I76*'Input sheet '!$F$71)-(V76*'Input sheet '!$F$73) -> 48.51286338 | X76: =W76+'Input sheet '!$F$75-(W76*$I76*'Input sheet '!$F$71)-(W76*'Input sheet '!$F$73) -> 51.43150505 | Y76: =(($Q76*$D76*'Input sheet '!$C$63*'Input sheet '!$D$63*'Input sheet '!$M$13)+($Q76*$D76*'Input sheet '!$C$64*'Input sheet '!$D$64*'Input sheet '!$M$13)+($Q76*$D76*'Input sheet '!$C$65*'Input sheet '!$D$65*'Input sheet '!$M$13))/($O76*$P76*60*(1-'Input sheet '!$F$69)) -> 34.48574346 | Z76: =Y76*($F76+$R76) -> 35.50493344 | AA76: 36.5542445 | AB76: 37.63456686 | AC76: 38.746817 | AD76: 39.89193854 | AH76: Other Demand | AI76: =IF('Input sheet '!$H$14="All",SUMIF('Data back sheet '!$C75:$C106,'Input sheet '!$H$11,'Data back sheet '!Y75:Y106),VLOOKUP('Input sheet '!$H$14,'Data back sheet '!$B$75:$AD$106,24,FALSE)) -> 18.54909885 | AJ76: =IF('Input sheet '!$H$14="All",SUMIF('Data back sheet '!$C75:$C106,'Input sheet '!$H$11,'Data back sheet '!Z75:Z106),VLOOKUP('Input sheet '!$H$14,'Data back sheet '!$B$75:$AD$106,25,FALSE)) -> 18.95390919 | AK76: =IF('Input sheet '!$H$14="All",SUMIF('Data back sheet '!$C75:$C106,'Input sheet '!$H$11,'Data back sheet '!AA75:AA106),VLOOKUP('Input sheet '!$H$14,'Data back sheet '!$B$75:$AD$106,26,FALSE)) -> 19.367554 | AL76: =IF('Input sheet '!$H$14="All",SUMIF('Data back sheet '!$C75:$C106,'Input sheet '!$H$11,'Data back sheet '!AB75:AB106),VLOOKUP('Input sheet '!$H$14,'Data back sheet '!$B$75:$AD$106,27,FALSE)) -> 19.79022607 | AM76: =IF('Input sheet '!$H$14="All",SUMIF('Data back sheet '!$C75:$C106,'Input sheet '!$H$11,'Data back sheet '!AC75:AC106),VLOOKUP('Input sheet '!$H$14,'Data back sheet '!$B$75:$AD$106,28,FALSE)) -> 20.22212242 | AN76: =IF('Input sheet '!$H$14="All",SUMIF('Data back sheet '!$C75:$C106,'Input sheet '!$H$11,'Data back sheet '!AD75:AD106),VLOOKUP('Input sheet '!$H$14,'Data back sheet '!$B$75:$AD$106,29,FALSE)) -> 20.66344436
A77: Other | B77: Bexley | C77: SEL | D77: 243302.5947 | E77: 248378.1074 | F77: 1.004137797 | G77: 19.36999983 | H77: NA | I77: 0.3214285714 | J77: 0.1 | K77: 0.02 | L77: 17 | M77: 10 | N77: 45 | O77: 210 | P77: 8 | Q77: 5.5 | R77: 0.017 | S77: =G77 -> 19.36999983 | T77: =S77+'Input sheet '!$F$75-(S77*$I77*'Input sheet '!$F$71)-(S77*'Input sheet '!$F$73) -> 23.16629269 | U77: =T77+'Input sheet '!$F$75-(T77*$I77*'Input sheet '!$F$71)-(T77*'Input sheet '!$F$73) -> 26.72667308 | V77: =U77+'Input sheet '!$F$75-(U77*$I77*'Input sheet '!$F$71)-(U77*'Input sheet '!$F$73) -> 30.06580125 | W77: =V77+'Input sheet '!$F$75-(V77*$I77*'Input sheet '!$F$71)-(V77*'Input sheet '!$F$73) -> 33.19742646 | X77: =W77+'Input sheet '!$F$75-(W77*$I77*'Input sheet '!$F$71)-(W77*'Input sheet '!$F$73) -> 36.13444353 | Y77: =(($Q77*$D77*'Input sheet '!$C$63*'Input sheet '!$D$63*'Input sheet '!$M$13)+($Q77*$D77*'Input sheet '!$C$64*'Input sheet '!$D$64*'Input sheet '!$M$13)+($Q77*$D77*'Input sheet '!$C$65*'Input sheet '!$D$65*'Input sheet '!$M$13))/($O77*$P77*60*(1-'Input sheet '!$F$69)) -> 21.78733844 | Z77: =Y77*($F77+$R77) -> 22.24787477 | AA77: 22.71814582 | AB77: 23.19835737 | AC77: 23.68871953 | AD77: 24.18944687
A78: Other | B78: Brent | C78: NWL | D78: 328567.7276 | E78: 345659.8734 | F78: 1.010194065 | G78: 48.01000039 | H78: NA | I78: 0.1384615385 | J78: 0.1 | K78: 0.02 | L78: 17 | M78: 10 | N78: 45 | O78: 210 | P78: 8 | Q78: 5.5 | R78: 0.017 | S78: 48.01000039 | T78: =S78+'Input sheet '!$F$75-(S78*$I78*'Input sheet '!$F$71)-(S78*'Input sheet '!$F$73) -> 50.90494653 | U78: =T78+'Input sheet '!$F$75-(T78*$I78*'Input sheet '!$F$71)-(T78*'Input sheet '!$F$73) -> 53.67296041 | V78: =U78+'Input sheet '!$F$75-(U78*$I78*'Input sheet '!$F$71)-(U78*'Input sheet '!$F$73) -> 56.31960753 | W78: =V78+'Input sheet '!$F$75-(V78*$I78*'Input sheet '!$F$71)-(V78*'Input sheet '!$F$73) -> 58.85020935 | X78: =W78+'Input sheet '!$F$75-(W78*$I78*'Input sheet '!$F$71)-(W78*'Input sheet '!$F$73) -> 61.26985402 | Y78: =(($Q78*$D78*'Input sheet '!$C$63*'Input sheet '!$D$63*'Input sheet '!$M$13)+($Q78*$D78*'Input sheet '!$C$64*'Input sheet '!$D$64*'Input sheet '!$M$13)+($Q78*$D78*'Input sheet '!$C$65*'Input sheet '!$D$65*'Input sheet '!$M$13))/($O78*$P78*60*(1-'Input sheet '!$F$69)) -> 29.42268779 | Z78: =Y78*($F78+$R78) -> 30.22281026 | AA78: 31.04469132 | AB78: 31.88892266 | AC78: 32.75611208 | AD78: 33.64688391
A79: Other | B79: Bromley | C79: SEL | D79: 326559.5853 | E79: 333607.5681 | F79: 1.004279717 | G79: 20.06000024 | H79: NA | I79: 0.2272727273 | J79: 0.1 | K79: 0.02 | L79: 17 | M79: 10 | N79: 45 | O79: 210 | P79: 8 | Q79: 5.5 | R79: 0.017 | S79: 20.06000024 | T79: =S79+'Input sheet '!$F$75-(S79*$I79*'Input sheet '!$F$71)-(S79*'Input sheet '!$F$73) -> 24.00229114 | U79: =T79+'Input sheet '!$F$75-(T79*$I79*'Input sheet '!$F$71)-(T79*'Input sheet '!$F$73) -> 27.73671579 | V79: =U79+'Input sheet '!$F$75-(U79*$I79*'Input sheet '!$F$71)-(U79*'Input sheet '!$F$73) -> 31.27423441 | W79: =V79+'Input sheet '!$F$75-(V79*$I79*'Input sheet '!$F$71)-(V79*'Input sheet '!$F$73) -> 34.62522932 | X79: =W79+'Input sheet '!$F$75-(W79*$I79*'Input sheet '!$F$71)-(W79*'Input sheet '!$F$73) -> 37.79953541 | Y79: =(($Q79*$D79*'Input sheet '!$C$63*'Input sheet '!$D$63*'Input sheet '!$M$13)+($Q79*$D79*'Input sheet '!$C$64*'Input sheet '!$D$64*'Input sheet '!$M$13)+($Q79*$D79*'Input sheet '!$C$65*'Input sheet '!$D$65*'Input sheet '!$M$13))/($O79*$P79*60*(1-'Input sheet '!$F$69)) -> 29.24286202 | Z79: =Y79*($F79+$R79) -> 29.86514186 | AA79: 30.50066364 | AB79: 31.14970914 | AC79: 31.81256615 | AD79: 32.48952856
A80: Other | B80: Camden | C80: NCL | D80: 240595.1876 | E80: 249811.742 | F80: 1.007546694 | G80: 28.3000002 | H80: NA | I80: 0.1363636364 | J80: 0.1 | K80: 0.02 | L80: 17 | M80: 10 | N80: 45 | O80: 210 | P80: 8 | Q80: 5.5 | R80: 0.017 | S80: 28.3000002 | T80: =S80+'Input sheet '!$F$75-(S80*$I80*'Input sheet '!$F$71)-(S80*'Input sheet '!$F$73) -> 32.0650911 | U80: =T80+'Input sheet '!$F$75-(T80*$I80*'Input sheet '!$F$71)-(T80*'Input sheet '!$F$73) -> 35.66588712 | V80: =U80+'Input sheet '!$F$75-(U80*$I80*'Input sheet '!$F$71)-(U80*'Input sheet '!$F$73) -> 39.1095575 | W80: =V80+'Input sheet '!$F$75-(V80*$I80*'Input sheet '!$F$71)-(V80*'Input sheet '!$F$73) -> 42.40295863 | X80: =W80+'Input sheet '!$F$75-(W80*$I80*'Input sheet '!$F$71)-(W80*'Input sheet '!$F$73) -> 45.55264771 | Y80: =(($Q80*$D80*'Input sheet '!$C$63*'Input sheet '!$D$63*'Input sheet '!$M$13)+($Q80*$D80*'Input sheet '!$C$64*'Input sheet '!$D$64*'Input sheet '!$M$13)+($Q80*$D80*'Input sheet '!$C$65*'Input sheet '!$D$65*'Input sheet '!$M$13))/($O80*$P80*60*(1-'Input sheet '!$F$69)) -> 21.54489469 | Z80: =Y80*($F80+$R80) -> 22.07375062 | AA80: 22.61558822 | AB80: 23.17072615 | AC80: 23.73949087 | AD80: 24.32221689
A81: Other | B81: Central London (Westminster) | C81: NWL | D81: 239861.5274 | E81: 250416.2946 | F81: 1.00864978 | G81: 24.64000008 | H81: NA | I81: 0.3333333333 | J81: 0.1 | K81: 0.02 | L81: 17 | M81: 10 | N81: 45 | O81: 210 | P81: 8 | Q81: 5.5 | R81: 0.017 | S81: 24.64000008 | T81: =S81+'Input sheet '!$F$75-(S81*$I81*'Input sheet '!$F$71)-(S81*'Input sheet '!$F$73) -> 28.07946674 | U81: =T81+'Input sheet '!$F$75-(T81*$I81*'Input sheet '!$F$71)-(T81*'Input sheet '!$F$73) -> 31.30110051 | V81: =U81+'Input sheet '!$F$75-(U81*$I81*'Input sheet '!$F$71)-(U81*'Input sheet '!$F$73) -> 34.31869748 | W81: =V81+'Input sheet '!$F$75-(V81*$I81*'Input sheet '!$F$71)-(V81*'Input sheet '!$F$73) -> 37.14517997 | X81: =W81+'Input sheet '!$F$75-(W81*$I81*'Input sheet '!$F$71)-(W81*'Input sheet '!$F$73) -> 39.79265191 | Y81: =(($Q81*$D81*'Input sheet '!$C$63*'Input sheet '!$D$63*'Input sheet '!$M$13)+($Q81*$D81*'Input sheet '!$C$64*'Input sheet '!$D$64*'Input sheet '!$M$13)+($Q81*$D81*'Input sheet '!$C$65*'Input sheet '!$D$65*'Input sheet '!$M$13))/($O81*$P81*60*(1-'Input sheet '!$F$69)) -> 21.47919665 | Z81: =Y81*($F81+$R81) -> 22.03013331 | AA81: 22.59520138 | AB81: 23.17476332 | AC81: 23.7691909 | AD81: 24.37886541
A82: Other | B82: City & Hackney | C82: NEL | D82: 279460 | E82: 298024 | F82: 1.012946054 | G82: 38.92999986 | H82: NA | I82: 0.3673469388 | J82: 0.1 | K82: 0.02 | L82: 17 | M82: 10 | N82: 45 | O82: 210 | P82: 8 | Q82: 5.5 | R82: 0.017 | S82: 38.92999986 | T82: =S82+'Input sheet '!$F$75-(S82*$I82*'Input sheet '!$F$71)-(S82*'Input sheet '!$F$73) -> 41.33201823 | U82: =T82+'Input sheet '!$F$75-(T82*$I82*'Input sheet '!$F$71)-(T82*'Input sheet '!$F$73) -> 43.57373865 | V82: =U82+'Input sheet '!$F$75-(U82*$I82*'Input sheet '!$F$71)-(U82*'Input sheet '!$F$73) -> 45.66585854 | W82: =V82+'Input sheet '!$F$75-(V82*$I82*'Input sheet '!$F$71)-(V82*'Input sheet '!$F$73) -> 47.61836145 | X82: =W82+'Input sheet '!$F$75-(W82*$I82*'Input sheet '!$F$71)-(W82*'Input sheet '!$F$73) -> 49.44056468 | Y82: =(($Q82*$D82*'Input sheet '!$C$63*'Input sheet '!$D$63*'Input sheet '!$M$13)+($Q82*$D82*'Input sheet '!$C$64*'Input sheet '!$D$64*'Input sheet '!$M$13)+($Q82*$D82*'Input sheet '!$C$65*'Input sheet '!$D$65*'Input sheet '!$M$13))/($O82*$P82*60*(1-'Input sheet '!$F$69)) -> 25.02517332 | Z82: =Y82*($F82+$R82) -> 25.77457851 | AA82: 26.54642543 | AB82: 27.34138612 | AC82: 28.16015274 | AD82: 29.00343819
A83: Other | B83: Croydon | C83: SWL | D83: 383407.6197 | E83: 399552.0842 | F83: 1.008283203 | G83: 42.48000019 | H83: NA | I83: 0.2063492063 | J83: 0.1 | K83: 0.02 | L83: 17 | M83: 10 | N83: 45 | O83: 210 | P83: 8 | Q83: 5.5 | R83: 0.017 | S83: 42.48000019 | T83: =S83+'Input sheet '!$F$75-(S83*$I83*'Input sheet '!$F$71)-(S83*'Input sheet '!$F$73) -> 45.32902875 | U83: =T83+'Input sheet '!$F$75-(T83*$I83*'Input sheet '!$F$71)-(T83*'Input sheet '!$F$73) -> 48.03379698 | V83: =U83+'Input sheet '!$F$75-(U83*$I83*'Input sheet '!$F$71)-(U83*'Input sheet '!$F$73) -> 50.60160948 | W83: =V83+'Input sheet '!$F$75-(V83*$I83*'Input sheet '!$F$71)-(V83*'Input sheet '!$F$73) -> 53.039401 | X83: =W83+'Input sheet '!$F$75-(W83*$I83*'Input sheet '!$F$71)-(W83*'Input sheet '!$F$73) -> 55.35375514 | Y83: =(($Q83*$D83*'Input sheet '!$C$63*'Input sheet '!$D$63*'Input sheet '!$M$13)+($Q83*$D83*'Input sheet '!$C$64*'Input sheet '!$D$64*'Input sheet '!$M$13)+($Q83*$D83*'Input sheet '!$C$65*'Input sheet '!$D$65*'Input sheet '!$M$13))/($O83*$P83*60*(1-'Input sheet '!$F$69)) -> 34.33350796 | Z83: =Y83*($F83+$R83) -> 35.201569 | AA83: 36.0915774 | AB83: 37.00408806 | AC83: 37.93966992 | AD83: 38.89890628
A84: Other | B84: Ealing | C84: NWL | D84: 348532.5076 | E84: 364118.8288 | F84: 1.008788143 | G84: 48.68 | H84: NA | I84: 0.1666666667 | J84: 0.1 | K84: 0.02 | L84: 17 | M84: 10 | N84: 45 | O84: 210 | P84: 8 | Q84: 5.5 | R84: 0.017 | S84: 48.68 | T84: =S84+'Input sheet '!$F$75-(S84*$I84*'Input sheet '!$F$71)-(S84*'Input sheet '!$F$73) -> 51.40826667 | U84: =T84+'Input sheet '!$F$75-(T84*$I84*'Input sheet '!$F$71)-(T84*'Input sheet '!$F$73) -> 54.00921422 | V84: =U84+'Input sheet '!$F$75-(U84*$I84*'Input sheet '!$F$71)-(U84*'Input sheet '!$F$73) -> 56.48878422 | W84: =V84+'Input sheet '!$F$75-(V84*$I84*'Input sheet '!$F$71)-(V84*'Input sheet '!$F$73) -> 58.85264096 | X84: =W84+'Input sheet '!$F$75-(W84*$I84*'Input sheet '!$F$71)-(W84*'Input sheet '!$F$73) -> 61.10618438 | Y84: =(($Q84*$D84*'Input sheet '!$C$63*'Input sheet '!$D$63*'Input sheet '!$M$13)+($Q84*$D84*'Input sheet '!$C$64*'Input sheet '!$D$64*'Input sheet '!$M$13)+($Q84*$D84*'Input sheet '!$C$65*'Input sheet '!$D$65*'Input sheet '!$M$13))/($O84*$P84*60*(1-'Input sheet '!$F$69)) -> 31.21050029 | Z84: =Y84*($F84+$R84) -> 32.01536115 | AA84: 32.84097787 | AB84: 33.68788572 | AC84: 34.55663376 | AD84: 35.44778519
A85: Other | B85: Enfield | C85: NCL | D85: 330967.757 | E85: 341277.2065 | F85: 1.006153679 | G85: 17.60000011 | H85: NA | I85: 0.303030303 | J85: 0.1 | K85: 0.02 | L85: 17 | M85: 10 | N85: 45 | O85: 210 | P85: 8 | Q85: 5.5 | R85: 0.017 | S85: 17.60000011 | T85: =S85+'Input sheet '!$F$75-(S85*$I85*'Input sheet '!$F$71)-(S85*'Input sheet '!$F$73) -> 21.53866677 | U85: =T85+'Input sheet '!$F$75-(T85*$I85*'Input sheet '!$F$71)-(T85*'Input sheet '!$F$73) -> 25.23981989 | V85: =U85+'Input sheet '!$F$75-(U85*$I85*'Input sheet '!$F$71)-(U85*'Input sheet '!$F$73) -> 28.71778227 | W85: =V85+'Input sheet '!$F$75-(V85*$I85*'Input sheet '!$F$71)-(V85*'Input sheet '!$F$73) -> 31.98601297 | X85: =W85+'Input sheet '!$F$75-(W85*$I85*'Input sheet '!$F$71)-(W85*'Input sheet '!$F$73) -> 35.05715946 | Y85: =(($Q85*$D85*'Input sheet '!$C$63*'Input sheet '!$D$63*'Input sheet '!$M$13)+($Q85*$D85*'Input sheet '!$C$64*'Input sheet '!$D$64*'Input sheet '!$M$13)+($Q85*$D85*'Input sheet '!$C$65*'Input sheet '!$D$65*'Input sheet '!$M$13))/($O85*$P85*60*(1-'Input sheet '!$F$69)) -> 29.63760639 | Z85: =Y85*($F85+$R85) -> 30.323826 | AA85: 31.02593412 | AB85: 31.74429862 | AC85: 32.47929591 | AD85: 33.23131108
A86: Other | B86: Greenwich | C86: SEL | D86: 275868.493 | E86: 300643.7565 | F86: 1.017349128 | G86: 23.68000027 | H86: NA | I86: 0.2962962963 | J86: 0.1 | K86: 0.02 | L86: 17 | M86: 10 | N86: 45 | O86: 210 | P86: 8 | Q86: 5.5 | R86: 0.017 | S86: 23.68000027 | T86: =S86+'Input sheet '!$F$75-(S86*$I86*'Input sheet '!$F$71)-(S86*'Input sheet '!$F$73) -> 27.26797062 | U86: =T86+'Input sheet '!$F$75-(T86*$I86*'Input sheet '!$F$71)-(T86*'Input sheet '!$F$73) -> 30.64199163 | V86: =U86+'Input sheet '!$F$75-(U86*$I86*'Input sheet '!$F$71)-(U86*'Input sheet '!$F$73) -> 33.81482102 | W86: =V86+'Input sheet '!$F$75-(V86*$I86*'Input sheet '!$F$71)-(V86*'Input sheet '!$F$73) -> 36.79845577 | X86: =W86+'Input sheet '!$F$75-(W86*$I86*'Input sheet '!$F$71)-(W86*'Input sheet '!$F$73) -> 39.60417748 | Y86: =(($Q86*$D86*'Input sheet '!$C$63*'Input sheet '!$D$63*'Input sheet '!$M$13)+($Q86*$D86*'Input sheet '!$C$64*'Input sheet '!$D$64*'Input sheet '!$M$13)+($Q86*$D86*'Input sheet '!$C$65*'Input sheet '!$D$65*'Input sheet '!$M$13))/($O86*$P86*60*(1-'Input sheet '!$F$69)) -> 24.7035599 | Z86: =Y86*($F86+$R86) -> 25.55210565 | AA86: 26.42979821 | AB86: 27.33763875 | AC86: 28.27666281 | AD86: 29.24794153
A87: Other | B87: Hammersmith & Fulham | C87: NWL | D87: 183353.7672 | E87: 192209.9651 | F87: 1.009478823 | G87: 32.12000023 | H87: NA | I87: 0.08 | J87: 0.1 | K87: 0.02 | L87: 17 | M87: 10 | N87: 45 | O87: 210 | P87: 8 | Q87: 5.5 | R87: 0.017 | S87: 32.12000023 | T87: =S87+'Input sheet '!$F$75-(S87*$I87*'Input sheet '!$F$71)-(S87*'Input sheet '!$F$73) -> 35.89944022 | U87: =T87+'Input sheet '!$F$75-(T87*$I87*'Input sheet '!$F$71)-(T87*'Input sheet '!$F$73) -> 39.53526149 | V87: =U87+'Input sheet '!$F$75-(U87*$I87*'Input sheet '!$F$71)-(U87*'Input sheet '!$F$73) -> 43.03292155 | W87: =V87+'Input sheet '!$F$75-(V87*$I87*'Input sheet '!$F$71)-(V87*'Input sheet '!$F$73) -> 46.39767054 | X87: =W87+'Input sheet '!$F$75-(W87*$I87*'Input sheet '!$F$71)-(W87*'Input sheet '!$F$73) -> 49.63455906 | Y87: =(($Q87*$D87*'Input sheet '!$C$63*'Input sheet '!$D$63*'Input sheet '!$M$13)+($Q87*$D87*'Input sheet '!$C$64*'Input sheet '!$D$64*'Input sheet '!$M$13)+($Q87*$D87*'Input sheet '!$C$65*'Input sheet '!$D$65*'Input sheet '!$M$13))/($O87*$P87*60*(1-'Input sheet '!$F$69)) -> 16.4190217 | Z87: =Y87*($F87+$R87) -> 16.85377806 | AA87: 17.30004626 | AB87: 17.75813111 | AC87: 18.22834551 | AD87: 18.71101064
A88: Other | B88: Haringey | C88: NCL | D88: 274802.7844 | E88: 290455.0671 | F88: 1.011140639 | G88: 34.47000015 | H88: NA | I88: 0.3846153846 | J88: 0.1 | K88: 0.02 | L88: 17 | M88: 10 | N88: 45 | O88: 210 | P88: 8 | Q88: 5.5 | R88: 0.017 | S88: 34.47000015 | T88: =S88+'Input sheet '!$F$75-(S88*$I88*'Input sheet '!$F$71)-(S88*'Input sheet '!$F$73) -> 37.11013091 | U88: =T88+'Input sheet '!$F$75-(T88*$I88*'Input sheet '!$F$71)-(T88*'Input sheet '!$F$73) -> 39.56951426 | V88: =U88+'Input sheet '!$F$75-(U88*$I88*'Input sheet '!$F$71)-(U88*'Input sheet '!$F$73) -> 41.86052443 | W88: =V88+'Input sheet '!$F$75-(V88*$I88*'Input sheet '!$F$71)-(V88*'Input sheet '!$F$73) -> 43.99468853 | X88: =W88+'Input sheet '!$F$75-(W88*$I88*'Input sheet '!$F$71)-(W88*'Input sheet '!$F$73) -> 45.98274447 | Y88: =(($Q88*$D88*'Input sheet '!$C$63*'Input sheet '!$D$63*'Input sheet '!$M$13)+($Q88*$D88*'Input sheet '!$C$64*'Input sheet '!$D$64*'Input sheet '!$M$13)+($Q88*$D88*'Input sheet '!$C$65*'Input sheet '!$D$65*'Input sheet '!$M$13))/($O88*$P88*60*(1-'Input sheet '!$F$69)) -> 24.60812749 | Z88: =Y88*($F88+$R88) -> 25.30061593 | AA88: 26.01259143 | AB88: 26.74460239 | AC88: 27.49721259 | AD88: 28.27100173
A89: Other | B89: Harrow | C89: NWL | D89: 250702.932 | E89: 258522.4137 | F89: 1.006161645 | G89: 33.95000024 | H89: NA | I89: 0.2352941176 | J89: 0.1 | K89: 0.02 | L89: 17 | M89: 10 | N89: 45 | O89: 210 | P89: 8 | Q89: 5.5 | R89: 0.017 | S89: 33.95000024 | T89: =S89+'Input sheet '!$F$75-(S89*$I89*'Input sheet '!$F$71)-(S89*'Input sheet '!$F$73) -> 37.1326767 | U89: =T89+'Input sheet '!$F$75-(T89*$I89*'Input sheet '!$F$71)-(T89*'Input sheet '!$F$73) -> 40.14498636 | V89: =U89+'Input sheet '!$F$75-(U89*$I89*'Input sheet '!$F$71)-(U89*'Input sheet '!$F$73) -> 42.99604885 | W89: =V89+'Input sheet '!$F$75-(V89*$I89*'Input sheet '!$F$71)-(V89*'Input sheet '!$F$73) -> 45.69449565 | X89: =W89+'Input sheet '!$F$75-(W89*$I89*'Input sheet '!$F$71)-(W89*'Input sheet '!$F$73) -> 48.24849618 | Y89: =(($Q89*$D89*'Input sheet '!$C$63*'Input sheet '!$D$63*'Input sheet '!$M$13)+($Q89*$D89*'Input sheet '!$C$64*'Input sheet '!$D$64*'Input sheet '!$M$13)+($Q89*$D89*'Input sheet '!$C$65*'Input sheet '!$D$65*'Input sheet '!$M$13))/($O89*$P89*60*(1-'Input sheet '!$F$69)) -> 22.45002621 | Z89: =Y89*($F89+$R89) -> 22.97000574 | AA89: 23.50202885 | AB89: 24.04637449 | AC89: 24.60332807 | AD89: 25.17318161
A90: Other | B90: Havering | C90: NEL | D90: 251610.7349 | E90: 265446.8105 | F90: 1.010763776 | G90: 16.19000015 | H90: NA | I90: 0.08333333333 | J90: 0.1 | K90: 0.02 | L90: 17 | M90: 10 | N90: 45 | O90: 210 | P90: 8 | Q90: 5.5 | R90: 0.017 | S90: 16.19000015 | T90: =S90+'Input sheet '!$F$75-(S90*$I90*'Input sheet '!$F$71)-(S90*'Input sheet '!$F$73) -> 20.56938347 | U90: =T90+'Input sheet '!$F$75-(T90*$I90*'Input sheet '!$F$71)-(T90*'Input sheet '!$F$73) -> 24.78089044 | V90: =U90+'Input sheet '!$F$75-(U90*$I90*'Input sheet '!$F$71)-(U90*'Input sheet '!$F$73) -> 28.83095631 | W90: =V90+'Input sheet '!$F$75-(V90*$I90*'Input sheet '!$F$71)-(V90*'Input sheet '!$F$73) -> 32.72576965 | X90: =W90+'Input sheet '!$F$75-(W90*$I90*'Input sheet '!$F$71)-(W90*'Input sheet '!$F$73) -> 36.47128181 | Y90: =(($Q90*$D90*'Input sheet '!$C$63*'Input sheet '!$D$63*'Input sheet '!$M$13)+($Q90*$D90*'Input sheet '!$C$64*'Input sheet '!$D$64*'Input sheet '!$M$13)+($Q90*$D90*'Input sheet '!$C$65*'Input sheet '!$D$65*'Input sheet '!$M$13))/($O90*$P90*60*(1-'Input sheet '!$F$69)) -> 22.53131844 | Z90: =Y90*($F90+$R90) -> 23.15687291 | AA90: 23.79979513 | AB90: 24.4605673 | AC90: 25.13968501 | AD90: 25.83765758
A91: Other | B91: Hillingdon | C91: NWL | D91: 299473.6783 | E91: 307062.0456 | F91: 1.005017205 | G91: 16.38000026 | H91: NA | I91: 0.3333333333 | J91: 0.1 | K91: 0.02 | L91: 17 | M91: 10 | N91: 45 | O91: 210 | P91: 8 | Q91: 5.5 | R91: 0.017 | S91: 16.38000026 | T91: =S91+'Input sheet '!$F$75-(S91*$I91*'Input sheet '!$F$71)-(S91*'Input sheet '!$F$73) -> 20.34260024 | U91: =T91+'Input sheet '!$F$75-(T91*$I91*'Input sheet '!$F$71)-(T91*'Input sheet '!$F$73) -> 24.05423556 | V91: =U91+'Input sheet '!$F$75-(U91*$I91*'Input sheet '!$F$71)-(U91*'Input sheet '!$F$73) -> 27.53080064 | W91: =V91+'Input sheet '!$F$75-(V91*$I91*'Input sheet '!$F$71)-(V91*'Input sheet '!$F$73) -> 30.78718327 | X91: =W91+'Input sheet '!$F$75-(W91*$I91*'Input sheet '!$F$71)-(W91*'Input sheet '!$F$73) -> 33.83732833 | Y91: =(($Q91*$D91*'Input sheet '!$C$63*'Input sheet '!$D$63*'Input sheet '!$M$13)+($Q91*$D91*'Input sheet '!$C$64*'Input sheet '!$D$64*'Input sheet '!$M$13)+($Q91*$D91*'Input sheet '!$C$65*'Input sheet '!$D$65*'Input sheet '!$M$13))/($O91*$P91*60*(1-'Input sheet '!$F$69)) -> 26.81736457 | Z91: =Y91*($F91+$R91) -> 27.40780798 | AA91: 28.01125129 | AB91: 28.62798075 | AC91: 29.25828886 | AD91: 29.90247459
A92: Other | B92: Hounslow | C92: NWL | D92: 272101.6454 | E92: 282830.2214 | F92: 1.007764206 | G92: 37.10000031 | H92: NA | I92: 0.15 | J92: 0.1 | K92: 0.02 | L92: 17 | M92: 10 | N92: 45 | O92: 210 | P92: 8 | Q92: 5.5 | R92: 0.017 | S92: 37.10000031 | T92: =S92+'Input sheet '!$F$75-(S92*$I92*'Input sheet '!$F$71)-(S92*'Input sheet '!$F$73) -> 40.4305003 | U92: =T92+'Input sheet '!$F$75-(T92*$I92*'Input sheet '!$F$71)-(T92*'Input sheet '!$F$73) -> 43.61112778 | V92: =U92+'Input sheet '!$F$75-(U92*$I92*'Input sheet '!$F$71)-(U92*'Input sheet '!$F$73) -> 46.64862703 | W92: =V92+'Input sheet '!$F$75-(V92*$I92*'Input sheet '!$F$71)-(V92*'Input sheet '!$F$73) -> 49.54943882 | X92: =W92+'Input sheet '!$F$75-(W92*$I92*'Input sheet '!$F$71)-(W92*'Input sheet '!$F$73) -> 52.31971407 | Y92: =(($Q92*$D92*'Input sheet '!$C$63*'Input sheet '!$D$63*'Input sheet '!$M$13)+($Q92*$D92*'Input sheet '!$C$64*'Input sheet '!$D$64*'Input sheet '!$M$13)+($Q92*$D92*'Input sheet '!$C$65*'Input sheet '!$D$65*'Input sheet '!$M$13))/($O92*$P92*60*(1-'Input sheet '!$F$69)) -> 24.36624503 | Z92: =Y92*($F92+$R92) -> 24.96965575 | AA92: 25.58800946 | AB92: 26.22167621 | AC92: 26.87103522 | AD92: 27.53647508
A93: Other | B93: Islington | C93: NCL | D93: 228397.1873 | E93: 241248.224 | F93: 1.011008192 | G93: 20.28000006 | H93: NA | I93: 0.21875 | J93: 0.1 | K93: 0.02 | L93: 17 | M93: 10 | N93: 45 | O93: 210 | P93: 8 | Q93: 5.5 | R93: 0.017 | S93: 20.28000006 | T93: =S93+'Input sheet '!$F$75-(S93*$I93*'Input sheet '!$F$71)-(S93*'Input sheet '!$F$73) -> 24.22797506 | U93: =T93+'Input sheet '!$F$75-(T93*$I93*'Input sheet '!$F$71)-(T93*'Input sheet '!$F$73) -> 27.97114885 | V93: =U93+'Input sheet '!$F$75-(U93*$I93*'Input sheet '!$F$71)-(U93*'Input sheet '!$F$73) -> 31.5201455 | W93: =V93+'Input sheet '!$F$75-(V93*$I93*'Input sheet '!$F$71)-(V93*'Input sheet '!$F$73) -> 34.88503796 | X93: =W93+'Input sheet '!$F$75-(W93*$I93*'Input sheet '!$F$71)-(W93*'Input sheet '!$F$73) -> 38.07537661 | Y93: =(($Q93*$D93*'Input sheet '!$C$63*'Input sheet '!$D$63*'Input sheet '!$M$13)+($Q93*$D93*'Input sheet '!$C$64*'Input sheet '!$D$64*'Input sheet '!$M$13)+($Q93*$D93*'Input sheet '!$C$65*'Input sheet '!$D$65*'Input sheet '!$M$13))/($O93*$P93*60*(1-'Input sheet '!$F$69)) -> 20.45258426 | Z93: =Y93*($F93+$R93) -> 21.02542417 | AA93: 21.6143083 | AB93: 22.219686 | AC93: 22.84201924 | AD93: 23.4817829
A94: Other | B94: Kingston | C94: SWL | D94: 173853.3709 | E94: 181326.684 | F94: 1.008453136 | G94: 22.43000013 | H94: NA | I94: 0.1034482759 | J94: 0.1 | K94: 0.02 | L94: 17 | M94: 10 | N94: 45 | O94: 210 | P94: 8 | Q94: 5.5 | R94: 0.017 | S94: 22.43000013 | T94: =S94+'Input sheet '!$F$75-(S94*$I94*'Input sheet '!$F$71)-(S94*'Input sheet '!$F$73) -> 26.52506564 | U94: =T94+'Input sheet '!$F$75-(T94*$I94*'Input sheet '!$F$71)-(T94*'Input sheet '!$F$73) -> 30.45491644 | V94: =U94+'Input sheet '!$F$75-(U94*$I94*'Input sheet '!$F$71)-(U94*'Input sheet '!$F$73) -> 34.22621809 | W94: =V94+'Input sheet '!$F$75-(V94*$I94*'Input sheet '!$F$71)-(V94*'Input sheet '!$F$73) -> 37.84536722 | X94: =W94+'Input sheet '!$F$75-(W94*$I94*'Input sheet '!$F$71)-(W94*'Input sheet '!$F$73) -> 41.3185024 | Y94: =(($Q94*$D94*'Input sheet '!$C$63*'Input sheet '!$D$63*'Input sheet '!$M$13)+($Q94*$D94*'Input sheet '!$C$64*'Input sheet '!$D$64*'Input sheet '!$M$13)+($Q94*$D94*'Input sheet '!$C$65*'Input sheet '!$D$65*'Input sheet '!$M$13))/($O94*$P94*60*(1-'Input sheet '!$F$69)) -> 15.56827717 | Z94: =Y94*($F94+$R94) -> 15.96453865 | AA94: 16.37088622 | AB94: 16.78757661 | AC94: 17.21487307 | AD94: 17.65304558
A95: Other | B95: Lambeth | C95: SEL | D95: 325454.6437 | E95: 342398.23 | F95: 1.010201962 | G95: 25.47000025 | H95: NA | I95: 0.1785714286 | J95: 0.1 | K95: 0.02 | L95: 17 | M95: 10 | N95: 45 | O95: 210 | P95: 8 | Q95: 5.5 | R95: 0.017 | S95: 25.47000025 | T95: =S95+'Input sheet '!$F$75-(S95*$I95*'Input sheet '!$F$71)-(S95*'Input sheet '!$F$73) -> 29.25107881 | U95: =T95+'Input sheet '!$F$75-(T95*$I95*'Input sheet '!$F$71)-(T95*'Input sheet '!$F$73) -> 32.85120575 | V95: =U95+'Input sheet '!$F$75-(U95*$I95*'Input sheet '!$F$71)-(U95*'Input sheet '!$F$73) -> 36.27904091 | W95: =V95+'Input sheet '!$F$75-(V95*$I95*'Input sheet '!$F$71)-(V95*'Input sheet '!$F$73) -> 39.54282966 | X95: =W95+'Input sheet '!$F$75-(W95*$I95*'Input sheet '!$F$71)-(W95*'Input sheet '!$F$73) -> 42.65042282 | Y95: =(($Q95*$D95*'Input sheet '!$C$63*'Input sheet '!$D$63*'Input sheet '!$M$13)+($Q95*$D95*'Input sheet '!$C$64*'Input sheet '!$D$64*'Input sheet '!$M$13)+($Q95*$D95*'Input sheet '!$C$65*'Input sheet '!$D$65*'Input sheet '!$M$13))/($O95*$P95*60*(1-'Input sheet '!$F$69)) -> 29.14391636 | Z95: =Y95*($F95+$R95) -> 29.93668806 | AA95: 30.75102472 | AB95: 31.58751292 | AC95: 32.44675525 | AD95: 33.32937066
A96: Other | B96: Lewisham | C96: SEL | D96: 299817.3844 | E96: 316842.3797 | F96: 1.011107405 | G96: 21.05000012 | H96: NA | I96: 0.07317073171 | J96: 0.1 | K96: 0.02 | L96: 17 | M96: 10 | N96: 45 | O96: 210 | P96: 8 | Q96: 5.5 | R96: 0.017 | S96: 21.05000012 | T96: =S96+'Input sheet '!$F$75-(S96*$I96*'Input sheet '!$F$71)-(S96*'Input sheet '!$F$73) -> 25.26447573 | U96: =T96+'Input sheet '!$F$75-(T96*$I96*'Input sheet '!$F$71)-(T96*'Input sheet '!$F$73) -> 29.32167944 | V96: =U96+'Input sheet '!$F$75-(U96*$I96*'Input sheet '!$F$71)-(U96*'Input sheet '!$F$73) -> 33.22748018 | W96: =V96+'Input sheet '!$F$75-(V96*$I96*'Input sheet '!$F$71)-(V96*'Input sheet '!$F$73) -> 36.98752787 | X96: =W96+'Input sheet '!$F$75-(W96*$I96*'Input sheet '!$F$71)-(W96*'Input sheet '!$F$73) -> 40.60726159 | Y96: =(($Q96*$D96*'Input sheet '!$C$63*'Input sheet '!$D$63*'Input sheet '!$M$13)+($Q96*$D96*'Input sheet '!$C$64*'Input sheet '!$D$64*'Input sheet '!$M$13)+($Q96*$D96*'Input sheet '!$C$65*'Input sheet '!$D$65*'Input sheet '!$M$13))/($O96*$P96*60*(1-'Input sheet '!$F$69)) -> 26.84814288 | Z96: =Y96*($F96+$R96) -> 27.60277451 | AA96: 28.37861687 | AB96: 29.17626615 | AC96: 29.99633529 | AD96: 30.83945443
A97: Other | B97: Merton | C97: SWL | D97: 207140.6699 | E97: 212185.0439 | F97: 1.00482372 | G97: 17.31 | H97: NA | I97: 0.2272727273 | J97: 0.1 | K97: 0.02 | L97: 17 | M97: 10 | N97: 45 | O97: 210 | P97: 8 | Q97: 5.5 | R97: 0.017 | S97: 17.31 | T97: =S97+'Input sheet '!$F$75-(S97*$I97*'Input sheet '!$F$71)-(S97*'Input sheet '!$F$73) -> 21.39729091 | U97: =T97+'Input sheet '!$F$75-(T97*$I97*'Input sheet '!$F$71)-(T97*'Input sheet '!$F$73) -> 25.26907012 | V97: =U97+'Input sheet '!$F$75-(U97*$I97*'Input sheet '!$F$71)-(U97*'Input sheet '!$F$73) -> 28.93670097 | W97: =V97+'Input sheet '!$F$75-(V97*$I97*'Input sheet '!$F$71)-(V97*'Input sheet '!$F$73) -> 32.41094764 | X97: =W97+'Input sheet '!$F$75-(W97*$I97*'Input sheet '!$F$71)-(W97*'Input sheet '!$F$73) -> 35.70200677 | Y97: =(($Q97*$D97*'Input sheet '!$C$63*'Input sheet '!$D$63*'Input sheet '!$M$13)+($Q97*$D97*'Input sheet '!$C$64*'Input sheet '!$D$64*'Input sheet '!$M$13)+($Q97*$D97*'Input sheet '!$C$65*'Input sheet '!$D$65*'Input sheet '!$M$13))/($O97*$P97*60*(1-'Input sheet '!$F$69)) -> 18.54909885 | Z97: =Y97*($F97+$R97) -> 18.95390919 | AA97: 19.367554 | AB97: 19.79022607 | AC97: 20.22212242 | AD97: 20.66344436
A98: Other | B98: Newham | C98: NEL | D98: 337378.1807 | E98: 362819.6276 | F98: 1.014646487 | G98: 37.03000037 | H98: NA | I98: 0.25 | J98: 0.1 | K98: 0.02 | L98: 17 | M98: 10 | N98: 45 | O98: 210 | P98: 8 | Q98: 5.5 | R98: 0.017 | S98: 37.03000037 | T98: =S98+'Input sheet '!$F$75-(S98*$I98*'Input sheet '!$F$71)-(S98*'Input sheet '!$F$73) -> 39.99335035 | U98: =T98+'Input sheet '!$F$75-(T98*$I98*'Input sheet '!$F$71)-(T98*'Input sheet '!$F$73) -> 42.79371608 | V98: =U98+'Input sheet '!$F$75-(U98*$I98*'Input sheet '!$F$71)-(U98*'Input sheet '!$F$73) -> 45.4400617 | W98: =V98+'Input sheet '!$F$75-(V98*$I98*'Input sheet '!$F$71)-(V98*'Input sheet '!$F$73) -> 47.94085831 | X98: =W98+'Input sheet '!$F$75-(W98*$I98*'Input sheet '!$F$71)-(W98*'Input sheet '!$F$73) -> 50.3041111 | Y98: =(($Q98*$D98*'Input sheet '!$C$63*'Input sheet '!$D$63*'Input sheet '!$M$13)+($Q98*$D98*'Input sheet '!$C$64*'Input sheet '!$D$64*'Input sheet '!$M$13)+($Q98*$D98*'Input sheet '!$C$65*'Input sheet '!$D$65*'Input sheet '!$M$13))/($O98*$P98*60*(1-'Input sheet '!$F$69)) -> 30.21164906 | Z98: =Y98*($F98+$R98) -> 31.16774163 | AA98: 32.15409118 | AB98: 33.17165522 | AC98: 34.22142159 | AD98: 35.30440938
A99: Other | B99: Redbridge | C99: NEL | D99: 301021.6161 | E99: 316853.4049 | F99: 1.010304155 | G99: 23.56000024 | H99: NA | I99: 0.2 | J99: 0.1 | K99: 0.02 | L99: 17 | M99: 10 | N99: 45 | O99: 210 | P99: 8 | Q99: 5.5 | R99: 0.017 | S99: 23.56000024 | T99: =S99+'Input sheet '!$F$75-(S99*$I99*'Input sheet '!$F$71)-(S99*'Input sheet '!$F$73) -> 27.38200023 | U99: =T99+'Input sheet '!$F$75-(T99*$I99*'Input sheet '!$F$71)-(T99*'Input sheet '!$F$73) -> 31.01290022 | V99: =U99+'Input sheet '!$F$75-(U99*$I99*'Input sheet '!$F$71)-(U99*'Input sheet '!$F$73) -> 34.46225521 | W99: =V99+'Input sheet '!$F$75-(V99*$I99*'Input sheet '!$F$71)-(V99*'Input sheet '!$F$73) -> 37.73914245 | X99: =W99+'Input sheet '!$F$75-(W99*$I99*'Input sheet '!$F$71)-(W99*'Input sheet '!$F$73) -> 40.85218532 | Y99: =(($Q99*$D99*'Input sheet '!$C$63*'Input sheet '!$D$63*'Input sheet '!$M$13)+($Q99*$D99*'Input sheet '!$C$64*'Input sheet '!$D$64*'Input sheet '!$M$13)+($Q99*$D99*'Input sheet '!$C$65*'Input sheet '!$D$65*'Input sheet '!$M$13))/($O99*$P99*60*(1-'Input sheet '!$F$69)) -> 26.95597981 | Z99: =Y99*($F99+$R99) -> 27.69199005 | AA99: 28.44809644 | AB99: 29.22484768 | AC99: 30.02280744 | AD99: 30.84255483
A100: Other | B100: Richmond | C100: SWL | D100: 196602.2286 | E100: 200158.6816 | F100: 1.003592019 | G100: 21.61000007 | H100: NA | I100: 0.380952381 | J100: 0.1 | K100: 0.02 | L100: 17 | M100: 10 | N100: 45 | O100: 210 | P100: 8 | Q100: 5.5 | R100: 0.017 | S100: 21.61000007 | T100: =S100+'Input sheet '!$F$75-(S100*$I100*'Input sheet '!$F$71)-(S100*'Input sheet '!$F$73) -> 25.13846197 | U100: =T100+'Input sheet '!$F$75-(T100*$I100*'Input sheet '!$F$71)-(T100*'Input sheet '!$F$73) -> 28.42665242 | V100: =U100+'Input sheet '!$F$75-(U100*$I100*'Input sheet '!$F$71)-(U100*'Input sheet '!$F$73) -> 31.49093276 | W100: =V100+'Input sheet '!$F$75-(V100*$I100*'Input sheet '!$F$71)-(V100*'Input sheet '!$F$73) -> 34.34655019 | X100: =W100+'Input sheet '!$F$75-(W100*$I100*'Input sheet '!$F$71)-(W100*'Input sheet '!$F$73) -> 37.00771368 | Y100: =(($Q100*$D100*'Input sheet '!$C$63*'Input sheet '!$D$63*'Input sheet '!$M$13)+($Q100*$D100*'Input sheet '!$C$64*'Input sheet '!$D$64*'Input sheet '!$M$13)+($Q100*$D100*'Input sheet '!$C$65*'Input sheet '!$D$65*'Input sheet '!$M$13))/($O100*$P100*60*(1-'Input sheet '!$F$69)) -> 17.60539915 | Z100: =Y100*($F100+$R100) -> 17.96792987 | AA100: 18.33792582 | AB100: 18.71554075 | AC100: 19.10093152 | AD100: 19.49425827
A101: Other | B101: Southwark | C101: SEL | D101: 310642.3523 | E101: 332523.7542 | F101: 1.013706898 | G101: 36.36000025 | H101: NA | I101: 0.25 | J101: 0.1 | K101: 0.02 | L101: 17 | M101: 10 | N101: 45 | O101: 210 | P101: 8 | Q101: 5.5 | R101: 0.017 | S101: 36.36000025 | T101: =S101+'Input sheet '!$F$75-(S101*$I101*'Input sheet '!$F$71)-(S101*'Input sheet '!$F$73) -> 39.36020024 | U101: =T101+'Input sheet '!$F$75-(T101*$I101*'Input sheet '!$F$71)-(T101*'Input sheet '!$F$73) -> 42.19538923 | V101: =U101+'Input sheet '!$F$75-(U101*$I101*'Input sheet '!$F$71)-(U101*'Input sheet '!$F$73) -> 44.87464282 | W101: =V101+'Input sheet '!$F$75-(V101*$I101*'Input sheet '!$F$71)-(V101*'Input sheet '!$F$73) -> 47.40653746 | X101: =W101+'Input sheet '!$F$75-(W101*$I101*'Input sheet '!$F$71)-(W101*'Input sheet '!$F$73) -> 49.7991779 | Y101: =(($Q101*$D101*'Input sheet '!$C$63*'Input sheet '!$D$63*'Input sheet '!$M$13)+($Q101*$D101*'Input sheet '!$C$64*'Input sheet '!$D$64*'Input sheet '!$M$13)+($Q101*$D101*'Input sheet '!$C$65*'Input sheet '!$D$65*'Input sheet '!$M$13))/($O101*$P101*60*(1-'Input sheet '!$F$69)) -> 27.81750056 | Z101: =Y101*($F101+$R101) -> 28.67168972 | AA101: 29.55210837 | AB101: 30.45956195 | AC101: 31.39488061 | AD101: 32.35892001
A102: Other | B102: Sutton | C102: SWL | D102: 201750.7963 | E102: 205926.3036 | F102: 1.004105424 | G102: 14.74000001 | H102: NA | I102: 0.09090909091 | J102: 0.1 | K102: 0.02 | L102: 17 | M102: 10 | N102: 45 | O102: 210 | P102: 8 | Q102: 5.5 | R102: 0.017 | S102: 14.74000001 | T102: =S102+'Input sheet '!$F$75-(S102*$I102*'Input sheet '!$F$71)-(S102*'Input sheet '!$F$73) -> 19.16380001 | U102: =T102+'Input sheet '!$F$75-(T102*$I102*'Input sheet '!$F$71)-(T102*'Input sheet '!$F$73) -> 23.41466965 | V102: =U102+'Input sheet '!$F$75-(U102*$I102*'Input sheet '!$F$71)-(U102*'Input sheet '!$F$73) -> 27.49936892 | W102: =V102+'Input sheet '!$F$75-(V102*$I102*'Input sheet '!$F$71)-(V102*'Input sheet '!$F$73) -> 31.42439359 | X102: =W102+'Input sheet '!$F$75-(W102*$I102*'Input sheet '!$F$71)-(W102*'Input sheet '!$F$73) -> 35.19598548 | Y102: =(($Q102*$D102*'Input sheet '!$C$63*'Input sheet '!$D$63*'Input sheet '!$M$13)+($Q102*$D102*'Input sheet '!$C$64*'Input sheet '!$D$64*'Input sheet '!$M$13)+($Q102*$D102*'Input sheet '!$C$65*'Input sheet '!$D$65*'Input sheet '!$M$13))/($O102*$P102*60*(1-'Input sheet '!$F$69)) -> 18.06644473 | Z102: =Y102*($F102+$R102) -> 18.44774472 | AA102: 18.8370922 | AB102: 19.23465703 | AC102: 19.64061263 | AD102: 20.05513609
A103: Other | B103: Tower Hamlets | C103: NEL | D103: 297804.9566 | E103: 337617.385 | F103: 1.025412426 | G103: 46.62000017 | H103: NA | I103: 0.3076923077 | J103: 0.1 | K103: 0.02 | L103: 17 | M103: 10 | N103: 45 | O103: 210 | P103: 8 | Q103: 5.5 | R103: 0.017 | S103: 46.62000017 | T103: =S103+'Input sheet '!$F$75-(S103*$I103*'Input sheet '!$F$71)-(S103*'Input sheet '!$F$73) -> 48.78693862 | U103: =T103+'Input sheet '!$F$75-(T103*$I103*'Input sheet '!$F$71)-(T103*'Input sheet '!$F$73) -> 50.82219389 | V103: =U103+'Input sheet '!$F$75-(U103*$I103*'Input sheet '!$F$71)-(U103*'Input sheet '!$F$73) -> 52.73376826 | W103: =V103+'Input sheet '!$F$75-(V103*$I103*'Input sheet '!$F$71)-(V103*'Input sheet '!$F$73) -> 54.52917773 | X103: =W103+'Input sheet '!$F$75-(W103*$I103*'Input sheet '!$F$71)-(W103*'Input sheet '!$F$73) -> 56.21548154 | Y103: =(($Q103*$D103*'Input sheet '!$C$63*'Input sheet '!$D$63*'Input sheet '!$M$13)+($Q103*$D103*'Input sheet '!$C$64*'Input sheet '!$D$64*'Input sheet '!$M$13)+($Q103*$D103*'Input sheet '!$C$65*'Input sheet '!$D$65*'Input sheet '!$M$13))/($O103*$P103*60*(1-'Input sheet '!$F$69)) -> 26.66793335 | Z103: =Y103*($F103+$R103) -> 27.7989851 | AA103: 28.97800751 | AB103: 30.20703511 | AC103: 31.48818876 | AD103: 32.82367924
A104: Other | B104: Waltham Forest | C104: NEL | D104: 274139.4078 | E104: 284554.6096 | F104: 1.007485562 | G104: 22.24000031 | H104: NA | I104: 0.1896551724 | J104: 0.1 | K104: 0.02 | L104: 17 | M104: 10 | N104: 45 | O104: 210 | P104: 8 | Q104: 5.5 | R104: 0.017 | S104: 22.24000031 | T104: =S104+'Input sheet '!$F$75-(S104*$I104*'Input sheet '!$F$71)-(S104*'Input sheet '!$F$73) -> 26.15100719 | U104: =T104+'Input sheet '!$F$75-(T104*$I104*'Input sheet '!$F$71)-(T104*'Input sheet '!$F$73) -> 29.8705096 | V104: =U104+'Input sheet '!$F$75-(U104*$I104*'Input sheet '!$F$71)-(U104*'Input sheet '!$F$73) -> 33.40788464 | W104: =V104+'Input sheet '!$F$75-(V104*$I104*'Input sheet '!$F$71)-(V104*'Input sheet '!$F$73) -> 36.77205029 | X104: =W104+'Input sheet '!$F$75-(W104*$I104*'Input sheet '!$F$71)-(W104*'Input sheet '!$F$73) -> 39.97148783 | Y104: =(($Q104*$D104*'Input sheet '!$C$63*'Input sheet '!$D$63*'Input sheet '!$M$13)+($Q104*$D104*'Input sheet '!$C$64*'Input sheet '!$D$64*'Input sheet '!$M$13)+($Q104*$D104*'Input sheet '!$C$65*'Input sheet '!$D$65*'Input sheet '!$M$13))/($O104*$P104*60*(1-'Input sheet '!$F$69)) -> 24.54872323 | Z104: =Y104*($F104+$R104) -> 25.14981251 | AA104: 25.7656198 | AB104: 26.39650547 | AC104: 27.04283874 | AD104: 27.70499783
A105: Other | B105: Wandsworth | C105: SWL | D105: 318253.4708 | E105: 331558.5638 | F105: 1.008224903 | G105: 49.01000018 | H105: NA | I105: 0.2058823529 | J105: 0.1 | K105: 0.02 | L105: 17 | M105: 10 | N105: 45 | O105: 210 | P105: 8 | Q105: 5.5 | R105: 0.017 | S105: 49.01000018 | T105: =S105+'Input sheet '!$F$75-(S105*$I105*'Input sheet '!$F$71)-(S105*'Input sheet '!$F$73) -> 51.53067076 | U105: =T105+'Input sheet '!$F$75-(T105*$I105*'Input sheet '!$F$71)-(T105*'Input sheet '!$F$73) -> 53.92382506 | V105: =U105+'Input sheet '!$F$75-(U105*$I105*'Input sheet '!$F$71)-(U105*'Input sheet '!$F$73) -> 56.19591391 | W105: =V105+'Input sheet '!$F$75-(V105*$I105*'Input sheet '!$F$71)-(V105*'Input sheet '!$F$73) -> 58.35306179 | X105: =W105+'Input sheet '!$F$75-(W105*$I105*'Input sheet '!$F$71)-(W105*'Input sheet '!$F$73) -> 60.40108337 | Y105: =(($Q105*$D105*'Input sheet '!$C$63*'Input sheet '!$D$63*'Input sheet '!$M$13)+($Q105*$D105*'Input sheet '!$C$64*'Input sheet '!$D$64*'Input sheet '!$M$13)+($Q105*$D105*'Input sheet '!$C$65*'Input sheet '!$D$65*'Input sheet '!$M$13))/($O105*$P105*60*(1-'Input sheet '!$F$69)) -> 28.49906343 | Z105: =Y105*($F105+$R105) -> 29.21794954 | AA105: 29.95496948 | AB105: 30.71058068 | AC105: 31.48525209 | AD105: 32.27946452
A106: Other | B106: West London (K&C & QPP) | C106: NWL | D106: 158447.2042 | E106: 161987.1734 | F106: 1.004428922 | G106: 32.03000006 | H106: NA | I106: 0.24 | J106: 0.1 | K106: 0.02 | L106: 17 | M106: 10 | N106: 45 | O106: 210 | P106: 8 | Q106: 5.5 | R106: 0.017 | S106: 32.03000006 | T106: =S106+'Input sheet '!$F$75-(S106*$I106*'Input sheet '!$F$71)-(S106*'Input sheet '!$F$73) -> 35.30038006 | U106: =T106+'Input sheet '!$F$75-(T106*$I106*'Input sheet '!$F$71)-(T106*'Input sheet '!$F$73) -> 38.39415953 | V106: =U106+'Input sheet '!$F$75-(U106*$I106*'Input sheet '!$F$71)-(U106*'Input sheet '!$F$73) -> 41.32087492 | W106: =V106+'Input sheet '!$F$75-(V106*$I106*'Input sheet '!$F$71)-(V106*'Input sheet '!$F$73) -> 44.08954767 | X106: =W106+'Input sheet '!$F$75-(W106*$I106*'Input sheet '!$F$71)-(W106*'Input sheet '!$F$73) -> 46.7087121 | Y106: =(($Q106*$D106*'Input sheet '!$C$63*'Input sheet '!$D$63*'Input sheet '!$M$13)+($Q106*$D106*'Input sheet '!$C$64*'Input sheet '!$D$64*'Input sheet '!$M$13)+($Q106*$D106*'Input sheet '!$C$65*'Input sheet '!$D$65*'Input sheet '!$M$13))/($O106*$P106*60*(1-'Input sheet '!$F$69)) -> 14.18868084 | Z106: =Y106*($F106+$R106) -> 14.49272897 | AA106: 14.80329253 | AB106: 15.12051112 | AC106: 15.44452737 | AD106: 15.77548694
S107: =SUM(S75:S106) -> 922.4700051 | X107: =SUM(X75:X106) -> 1428.306866 | Y107: =SUM(Y75:Y106) -> 783.6151952 | AD107: =SUM(AD75:AD106) -> 894.4005107
B108: Staff count | C108: GP | D108: Nurse | E108: Other | X108: =(X107-S107)/S107 -> 0.5483504698 | AD108: =(AD107-Y107)/Y107 -> 0.1413771915
A109: Data Validation | B109: =SUM('Input sheet '!M11:M13) -> 1 | C109: =SUM('Input sheet '!C25:C27) -> 1 | D109: =SUM('Input sheet '!C44:C46) -> 1 | E109: =SUM('Input sheet '!C63:C65) -> 1
